{"text_format":"1","workbook":"xlsx","n_sheets":4,"sheets":["selecteer hier uw barbecue","matrixen","Algemene verkoopsvoorwaarden","Reservatievoorstel"],"not_rendered":{"charts":0,"images":0,"macros":1,"external_links":0,"defined_names":3,"comments":0,"pivot_tables":0},"unopened":[],"bounds":{"document_bytes":16777216,"sheet_cells":100000,"rows_first":2000,"rows_last":500,"rows_between":2000,"halvings":0,"cell_chars":16384,"cell_head_chars":4096},"cells_cut":0,"cells_raw":0,"read":"whole","date_system":"1900"}

{"sheet":"selecteer hier uw barbecue","index":0,"n_rows":109,"n_cols":32,"rows_kept":109,"cut":false,"hidden":false,"merged":[[89,10,90,24],[87,10,87,17],[35,5,35,7],[36,5,36,7],[37,5,37,7],[38,5,38,7],[39,5,39,7],[42,5,42,7],[43,5,43,7],[41,5,41,9]]}
[null,"Deze info is van: Feestzaal Katelijnenhof, Heirweg 172, 8800 Roeselare. Contacteer de zaakvoerder: 0475/618058 - info@katelijnenhof.be - web: www.katelijnenhof.be met foto's en volledige prijslijst."]
[]
[null,{"$f":"\"Rekenmodule barbecue. De prijzen van de recepties in deze module gelden voor alle personen waarvan de receptie gevolgd wordt door een maaltijd. Geldig tot \" & DAY(matrixen!B1) & \" - \" & MONTH(matrixen!B1) & \" - \" & YEAR(matrixen!B1)","v":"Rekenmodule barbecue. De prijzen van de recepties in deze module gelden voor alle personen waarvan de receptie gevolgd wordt door een maaltijd. Geldig tot 23 - 2 - 2018"}]
[]
[null,null,null,null,null,"kinderen",null,"kinderen",null,"kinderen"]
[null,null,null,{"$f":"IF(TODAY()>AA11,\"Deze module is niet meer geldig.\",\"\")","v":""},null," 0 t.e.m. 2 j. 11 maand",null,"3 j. t.e.m. 5 j. 11 maand",null,"6 j, t.e.m. 11 jr. 11 maand"]
[null,"Totaal per volwassene:",null,{"$f":"IF(TODAY()>AA11,1/0,SUM(D10:D982))","v":30.8},null,"0,00",null,{"$f":"D7/3","v":10.266666666666667},null,{"$f":"D7/2","v":15.4}]
[null,null,null,null,null,"U kan ook voor de kinderen een kindermenu nemen ( zie een andere rekenmodule)"]
[]
[null,"MAAK STEEDS UW KEUZE in de gele vakken: (scroll naar beneden om meer gegevens in te vullen) Hierboven kunt u uw prijs volgen.",null,null,null,null,null,null,"U vindt verder een overzicht van uw selectie"]
[null,"(klik op de gele balk, vervolgens op het pijltje rechts en scroll ev. naar beneden)",null,"prijs pp",null,"Beknopte info",null,"Gedetailleerde info",null,null,null,null,null,null,null,null,null,null,null,null,null,null,null,null,null,null,{"$f":"matrixen!B1","v":43154}]
[]
[null,"Maak in dit vak uw keuze voor het aperitief",null,{"$f":"VLOOKUP(B13,matrixen!B11:I19,8,FALSE)","v":0},null,{"$f":"HLOOKUP($B$13,matrixen!$K$14:$S$18,2,FALSE)","v":0},null,{"$f":"HLOOKUP($B$13,matrixen!$T$14:$AB$28,2,FALSE)","v":0},null,null,null,null,null,null,null,null,null,null,null,null,null,null,null,null,null,null,{"$f":"matrixen!B11","v":"Maak in dit vak uw keuze voor het aperitief"}]
[null,"Maak in dit vak uw keuze voor het aperitief",null,null,null,{"$f":"HLOOKUP($B$13,matrixen!$K$14:$S$18,3,FALSE)","v":0},null,{"$f":"HLOOKUP($B$13,matrixen!$T$14:$AB$28,3,FALSE)","v":0},null,null,null,null,null,null,null,null,null,null,null,null,null,null,null,null,null,null,{"$f":"matrixen!B12","v":"1 aperitief per persoon"}]
[null,null,null,null,null,{"$f":"HLOOKUP($B$13,matrixen!$K$14:$S$18,4,FALSE)","v":0},null,{"$f":"HLOOKUP($B$13,matrixen!$T$14:$AB$28,4,FALSE)","v":0},null,null,null,null,null,null,null,null,null,null,null,null,null,null,null,null,null,null,{"$f":"matrixen!B13","v":"2 aperitieven per persoon"}]
[null,"Indien een genodigde een extra aperitief bestelt of een aperitief wenst die niet in de prijs begrepen is dan:",null,null,null,{"$f":"HLOOKUP($B$13,matrixen!$K$14:$S$19,5,FALSE)","v":0},null,{"$f":"HLOOKUP($B$13,matrixen!$T$14:$AB$28,5,FALSE)","v":0},null,null,null,null,null,null,null,null,null,null,null,null,null,null,null,null,null,null,{"$f":"matrixen!B14","v":"Receptie F"}]
[null,"De gast die een extra aperitief bestelt betaalt deze zelf",null,null,null,"De gast die een extra aperitief bestelt betaalt deze zelf",null,{"$f":"HLOOKUP($B$13,matrixen!$T$14:$AB$28,6,FALSE)","v":0},null,null,null,null,null,null,null,null,null,null,null,null,null,null,null,null,null,null,{"$f":"matrixen!B15","v":"Receptie E"}]
[null,"De gast die een extra aperitief bestelt betaalt deze zelf",null,null,null,"Alle extra aperitief komt op de algemene rekening.",null,{"$f":"HLOOKUP($B$13,matrixen!$T$14:$AB$28,7,FALSE)","v":0},null,null,null,null,null,null,null,null,null,null,null,null,null,null,null,null,null,null,{"$f":"matrixen!B16","v":"Receptie D"}]
[null,null,null,null,null,null,null,{"$f":"HLOOKUP($B$13,matrixen!$T$14:$AB$28,8,FALSE)","v":0},null,null,null,null,null,null,null,null,null,null,null,null,null,null,null,null,null,null,{"$f":"matrixen!B17","v":"Receptie C"}]
[null,null,null,null,null,null,null,{"$f":"HLOOKUP($B$13,matrixen!$T$14:$AB$28,9,FALSE)","v":0},null,null,null,null,null,null,null,null,null,null,null,null,null,null,null,null,null,null,{"$f":"matrixen!B18","v":"Receptie B"}]
[null,null,null,null,null,null,null,{"$f":"HLOOKUP($B$13,matrixen!$T$14:$AB$28,10,FALSE)","v":0},null,null,null,null,null,null,null,null,null,null,null,null,null,null,null,null,null,null,{"$f":"matrixen!B19","v":"Receptie A"}]
[null,null,null,null,null,null,null,{"$f":"HLOOKUP($B$13,matrixen!$T$14:$AB$28,11,FALSE)","v":0}]
[null,"Let op: indien slecht weer (vanaf 5 Beaufort of bij hevige neerslag) kunnen wij beslissen om het vlees",null,null,null,null,null,{"$f":"HLOOKUP($B$13,matrixen!$T$14:$AB$28,12,FALSE)","v":0},null,null,null,null,null,null,null,null,null,null,null,null,null,null,null,null,null,null,{"$f":"matrixen!B23","v":"Schuimwijn van het huis (reeds inbegrepen)"}]
[null," te bakken in de keuken binnen. We doen er echter alles aan om de barbecue buiten te laten doorgaan.",null,null,null,null,null,{"$f":"HLOOKUP($B$13,matrixen!$T$14:$AB$28,13,FALSE)","v":0},null,null,null,null,null,null,null,null,null,null,null,null,null,null,null,null,null,null,{"$f":"matrixen!B24","v":"Cava"}]
[null,null,null,null,null,null,null,{"$f":"HLOOKUP($B$13,matrixen!$T$14:$AB$28,14,FALSE)","v":0},null,null,null,null,null,null,null,null,null,null,null,null,null,null,null,null,null,null,{"$f":"matrixen!B25","v":"Champagne"}]
[null,null,null,null,null,null,null,{"$f":"HLOOKUP($B$13,matrixen!$T$14:$AB$28,15,FALSE)","v":0},null,null,null,null,null,null,null,null,null,null,null,null,null,null,null,null,null,null,{"$f":"matrixen!B26","v":0}]
[]
[null,"Stel zelf uw barbecue samen!"]
[null,"In de barbecues zijn steeds groenten voorzien,  koude aardappelen en/of aardappel in de pel. Ook de sausjes zijn inbegrepen.",null,null,null,null,null,null,null,null,null,null,null,null,null,null,null,null,null,null,null,null,null,null,null,null,{"$f":"matrixen!B44","v":"Maak hier uw keuze voor extra hapjes bij het aperitief"}]
[null,"Afhankelijk van de soort ingrediënten die u kiest, verandert de prijs van de barbecue. De volwassenen verkrijgen steeds 5 verschillende soorten. De kinderen 3.",null,null,null,null,null,null,null,null,null,null,null,null,null,null,null,null,null,null,null,null,null,null,null,null,{"$f":"matrixen!B45","v":"Nootjes, chips en zoutkoekjes zoveel u wenst,  per pers."}]
[null,null,null,null,null,null,null,null,null,null,null,null,null,null,null,null,null,null,null,null,null,null,null,null,null,null,{"$f":"matrixen!B46","v":"Rauwe groenten (wortel, bloemkool, cocktailsaus) prijs per persoon:"}]
[null,"Kies hier eerst uw aardappelbereiding",null,null,null,null,null,null,null,null,null,null,null,null,null,null,null,null,null,null,null,null,null,null,null,null,{"$f":"matrixen!B47","v":"Warme toostjes per stuk"}]
[null,"Aardappel in de pel",null,{"$f":"VLOOKUP(B33,matrixen!B100:G103,6,FALSE)","v":"inbegrepen"},null,null,null,null,null,null,null,null,null,null,null,null,null,null,null,null,null,null,null,null,null,null,{"$f":"matrixen!B48","v":"Koude toostjes per stuk"}]
[null,"Aardappel in de pel",null,null,null,null,null,null,null,null,null,null,null,null,null,null,null,null,null,null,null,null,null,null,null,null,{"$f":"matrixen!B49","v":"aperitiefglaasjes per stuk"}]
[null,"Selecteer hier de samenstelling van uw barbecue.  Indien u bij onderstaande lijst blijft, kost de barbecue:",null,{"$f":"matrixen!B133","v":28},null,{"$f":"\"Selecteert u één of meer van onderstaande specialiteiten, is er een supplement van \"&matrixen!E133&\" euro pp t.o.v. de basisprijs\"","v":"Selecteert u één of meer van onderstaande specialiteiten, is er een supplement van 4 euro pp t.o.v. de basisprijs"},null,null,null,null,null,null,null,null,null,null,{"$f":"IF(AND(F36<>\"\",F36<> matrixen!E$112),1,0)","v":0},{"$f":"IF(Q35+Q36+Q37+Q38+Q39>0,matrixen!E133,0)","v":0},null,null,null,null,null,null,null,null,{"$f":"matrixen!B50","v":"Oesters per stuk warm of koud"}]
[1,"Kies uit deze vleesspecialiteiten",{"$f":"IF(AND(B36 <>\"\",B36<> matrixen!B$112),1,0)","v":0},null,1,"supp.  visgerechten / rund",null,null,null,"U mag tegelijk ook ",null,null,null,null,null,null,{"$f":"IF(AND(F37<>\"\",F37<> matrixen!E$112),1,0)","v":0},null,null,null,null,null,null,null,null,null,{"$f":"matrixen!B51","v":"wachtbordje met vispasteitje"}]
[2,"Kies uit deze vleesspecialiteiten",{"$f":"IF(AND(B37 <>\"\",B37<> matrixen!B$112),1,0)","v":0},null,2,"supp.  visgerechten / rund",null,null,null,"uit de vorige categorie kiezen",null,null,null,null,null,null,{"$f":"IF(AND(F38<>\"\",F38<> matrixen!E$112),1,0)","v":0},null,null,null,null,null,null,null,null,null,{"$f":"matrixen!B52","v":"wachtbordje van reuzentoost met gerookte zalm"}]
[3,"Kies uit deze vleesspecialiteiten",{"$f":"IF(AND(B38 <>\"\",B38<> matrixen!B$112),1,0)","v":0},null,3,"supp.  visgerechten / rund",null,null,null,null,null,null,null,null,null,null,{"$f":"IF(AND(F39<>\"\",F39<> matrixen!E$112),1,0)","v":0},null,null,null,null,null,null,null,null,null,{"$f":"matrixen!B53","v":"wachtbordje van lauw slaatje met gerookte zalm en scampi's"}]
[4,"Kies uit deze vleesspecialiteiten",{"$f":"IF(AND(B39 <>\"\",B39<> matrixen!B$112),1,0)","v":0},{"$f":"R35","v":0},4,"supp.  visgerechten / rund",null,null,null,null,null,null,null,null,null,null,{"$f":"IF(AND(F40<>\"\",F40<> matrixen!E$112),1,0)","v":0},null,null,null,null,null,null,null,null,null,{"$f":"matrixen!B54","v":0}]
[5,"Kies uit deze vleesspecialiteiten",{"$f":"IF(AND(B40 <>\"\",B40<> matrixen!B$112),1,0)","v":0},null,5,"supp.  visgerechten / rund",null,null,null,null,null,null,null,null,null,null,null,null,null,null,null,null,null,null,null,null,{"$f":"matrixen!B55","v":0},null,null,null,{"$f":"IF($D$39>0,AF40,\"\")","v":""},{"$f":"matrixen!E121","v":"U mag 2 warme sausen kiezen als u ook vis of rund kiest!"}]
[null,"Kies uit deze vleesspecialiteiten",null,null,null,"supp.  visgerechten / rund",null,null,null,null,null,null,null,null,null,null,null,null,null,null,null,null,null,null,null,null,null,null,null,null,"",{"$f":"matrixen!E122","v":"bearnaise"}]
[null,{"$f":"IF(C36+C37+C38+C39+C40+Q35+Q36+Q37+Q38+Q39+G4<>5,\"Gelieve in totaal 5 vlees- en/of visspecialtieiten te selecteren\",\"U koos nu 5 gerechten. Indien gewenst kunt u nog steeds wijzigen\")","v":"Gelieve in totaal 5 vlees- en/of visspecialtieiten te selecteren"},null,null,null,{"$f":"IF(D39>0,AF40,\"\")","v":""},null,null,null,null,null,null,null,null,null,null,null,null,null,null,null,null,null,null,null,null,{"$f":"matrixen!B100","v":"Koude aardappelen"},null,null,null,"",{"$f":"matrixen!E123","v":"romige portosaus"}]
[null,null,null,null,null,null,null,null,null,null,null,null,null,null,null,null,null,null,null,null,null,null,null,null,null,null,{"$f":"matrixen!B101","v":"Aardappel in de pel"},null,null,null,"",{"$f":"matrixen!E124","v":"pepersaus"}]
[null,"Selecteer hier uw formule van de dranken tijdens de barbecue.",null,null,null,null,null,null,null,null,null,null,null,null,null,null,null,null,null,null,null,null,null,null,null,null,{"$f":"matrixen!B102","v":"1/2 koude aardappelen en 1/2 aardappel in de pel"},null,null,null,"",{"$f":"matrixen!E125","v":"mosterd en look,"}]
[null,"Huiswijn, bieren en frisdranken als forfait",null,{"$f":"VLOOKUP(B45,matrixen!B139:M141,12,FALSE)","v":2.8},null,null,null,null,null,null,null,null,null,null,null,null,null,null,null,null,null,null,null,null,null,null,{"$f":"matrixen!B103","v":"frietjes (supplement)"},null,null,null,"",{"$f":"matrixen!E126","v":"champignonroomsaus"}]
[null,"Huiswijn, bieren en frisdranken als forfait",null,null,null,null,null,null,null,null,null,null,null,null,null,null,null,null,null,null,null,null,null,null,null,null,null,null,null,null,"",{"$f":"matrixen!E127","v":"kreeftsaus met groentebrunoise"}]
[null,null,null,null,null,"extra info",null,null,null,null,null,null,null,null,null,null,null,null,null,null,null,null,null,null,null,null,{"$f":"matrixen!B112","v":"Kies uit deze vleesspecialiteiten"},null,null,null,"",{"$f":"matrixen!E128","v":"kreeftsaus zonder groenten"}]
[null,"Selecteer hier uw dessert.",null,null,null,null,null,null,null,null,null,null,null,null,null,null,null,null,null,null,null,null,null,null,null,null,{"$f":"matrixen!B113","v":"- Worst"},null,null,null,"",{"$f":"matrixen!E129","v":"saffraansaus"}]
[null,"Nog geen dessert geselecteerd",null,{"$f":"VLOOKUP(B49,dessert,8,FALSE)","v":0},null,{"$f":"VLOOKUP($B$49,dessert,10,FALSE)","v":0},null,null,null,null,null,null,null,null,null,null,null,null,null,null,null,null,null,null,null,null,{"$f":"matrixen!B114","v":"- Kippenboutjes"},null,null,null,"",{"$f":"matrixen!E130","v":"bieslooksaus"}]
[null,"Nog geen dessert geselecteerd",null,null,null,{"$f":"VLOOKUP($B$49,dessert,11,FALSE)","v":0},null,null,null,null,null,null,null,null,null,null,null,null,null,null,null,null,null,null,null,null,{"$f":"matrixen!B115","v":"- Gemarineerde kotelet  "}]
[null,null,null,null,null,{"$f":"VLOOKUP($B$49,dessert,12,FALSE)","v":0},null,null,null,null,null,null,null,null,null,null,null,null,null,null,null,null,null,null,null,null,{"$f":"matrixen!B116","v":"- Lamskoteletjes "}]
[null,null,null,null,null,{"$f":"VLOOKUP($B$49,dessert,13,FALSE)","v":0},null,null,null,null,null,null,null,null,null,null,null,null,null,null,null,null,null,null,null,null,{"$f":"matrixen!B117","v":"- Varkensbrochet"}]
[null,null,null,null,null,{"$f":"VLOOKUP($B$49,dessert,14,FALSE)","v":0},null,null,null,null,null,null,null,null,null,null,null,null,null,null,null,null,null,null,null,null,{"$f":"matrixen!B118","v":"-  Kasselrib    "}]
[null,null,null,null,null,{"$f":"VLOOKUP($B$49,dessert,15,FALSE)","v":0},null,null,null,null,null,null,null,null,null,null,null,null,null,null,null,null,null,null,null,null,{"$f":"matrixen!B119","v":"- Ribbetjes"}]
[null,"Selecteer hier uw koffie",null,null,null,null,null,null,null,null,null,null,null,null,null,null,null,null,null,null,null,null,null,null,null,null,{"$f":"matrixen!B120","v":"- Worst"}]
[null,"Nog geen keuze gemaakt",null,{"$f":"VLOOKUP(B56,matrixen!B169:I172,8,FALSE)","v":0},null,null,null,null,null,null,null,null,null,null,null,null,null,null,null,null,null,null,null,null,null,null,{"$f":"matrixen!B121","v":"- Kippenboutjes"}]
[null,"Nog geen keuze gemaakt"]
[null,"Elke gast die na de maaltijd een drankje bestelt rekent direct af aan de bar",null,{"$f":"VLOOKUP($B$58,matrixen!$A$176:$P$178,15,FALSE)","v":0},{"$f":"VLOOKUP($B$58,matrixen!$A$176:$P$178,16,FALSE)","v":"direct afrekenen"},"Vegetariërs: ","nee","Speciale dieten: ","nee","Halal bereidingen: ","nee",null,null,null,null,null,null,null,null,null,null,null,null,null,null,null,null,{"$f":"matrixen!E112","v":"supp.  visgerechten / rund"}]
[null,"Elke gast die na de maaltijd een drankje bestelt rekent direct af aan de bar",null,null,null,null,null,null,null,null,null,null,null,null,null,null,null,null,null,null,null,null,null,null,null,null,null,{"$f":"matrixen!E113","v":"- Brochette met gepelde scampi's"}]
[null,null,null,null,null,"Feest met discobar: ","nee","Allergenen: ","nee",{"$f":"IF($I$60=\"ja\",matrixen!A182,\"\")","v":""},null,null,null,null,null,null,null,null,null,null,null,null,null,null,null,null,null,{"$f":"matrixen!E114","v":"- Stukje zalm en papillotte"}]
[null,"Om uw selecties te bewaren, gelieve ze op te slaan op uw harde schijf. (opslaan als)",null,null,null,null,{"$f":"IF(G60=\"ja\",matrixen!A186,\"\")","v":""},null,null,{"$f":"IF($I$60=\"ja\",matrixen!A183,\"\")","v":""},null,null,null,null,null,null,null,null,null,null,null,null,null,null,null,null,null,{"$f":"matrixen!E115","v":"- Stukje victoriabaarsfilet met fijne kruiden en papillotte"}]
[null,null,null,null,null,null,null,null,null,{"$f":"IF($I$60=\"ja\",matrixen!A184,\"\")","v":""},null,null,null,null,null,null,null,null,null,null,null,null,null,null,null,null,null,{"$f":"matrixen!E116","v":"- Forel met fijne groenten en papillotte"}]
[null,"Om een aanvraag naar ons te versturen stuur een mail naar info@katelijnenhof met in bijlage dit bestand vanaf uw harde schijf.",null,null,null,null,null,null,null,null,null,null,null,null,null,null,null,null,null,null,null,null,null,null,null,null,null,{"$f":"matrixen!E117","v":"- Witte zalm in een jasje van ham"}]
[null,null,null,null,"Eventuele datum van het feest:",null,null,"Overzicht van uw selectie:",null,null,null,null,null,null,null,null,null,null,null,null,null,null,null,null,null,null,null,{"$f":"matrixen!E118","v":"- Côte à l’os"}]
[null,null,null,null,null,"Het exacte aantal personen en de tafelschikking dient ons meegedeeld te worden de vrijdag van het weekend voordien.",null,{"$f":"IF(B13=matrixen!B11,\"\",B13)","v":""},null,null,null,{"$f":"D13","v":0},null,null,null,null,null,null,null,null,null,null,null,null,null,null,{"$f":"matrixen!B139","v":"Huiswijn, bieren en frisdranken als forfait"},{"$f":"matrixen!E119","v":"- Steak"}]
[null,null,null,null,"geraamd aantal volwassenen:",null,null,{"$f":"IF(L66>0,B88,\"\")","v":""},null,{"$f":"IF(L66>0,\"geldt alleen bij recepties!!!\",\"\")","v":""},null,{"$f":"D88","v":0},null,null,null,null,null,null,null,null,null,null,null,null,null,null,{"$f":"matrixen!B140","v":"Domaine Joel Delauny Touraine  en/of Château Reynier, Bordeaux superieur,  bieren en frisdranken"}]
[null,null,null,null,"geraamd aantal kinderen 6 j. t.e.m. 11 jr. 11 maand:",null,null,{"$f":"IF(L67>0,B94,\"\")","v":""},null,null,null,{"$f":"D94","v":0},null,null,null,null,null,null,null,null,null,null,null,null,null,null,{"$f":"matrixen!B141","v":0}]
[null,null,null,null,"geraamd aantal kinderen 3 j. t.e.m. 5 j. 11 maand:",null,null,{"$f":"IF(L68>0,B95,\"\")","v":""},null,null,null,{"$f":"D95","v":0}]
[null,null,null,null,"geraamd aantal kinderen  0 t.e.m. 2 j. 11 maand:",null,null,{"$f":"IF(L69>0,B96,\"\")","v":""},null,null,null,{"$f":"D96","v":0},null,null,null,null,null,null,null,null,null,null,null,null,null,null,{"$f":"matrixen!B142","v":"Nog geen dessert geselecteerd"}]
[null,null,null,null,null,null,null,{"$f":"IF(L70>0,B97,\"\")","v":""},null,null,null,{"$f":"D97","v":0},null,null,null,null,null,null,null,null,null,null,null,null,null,null,{"$f":"matrixen!B143","v":"Halve gegarneerde maan"}]
[null,null,null,null,"uur van aankomst:",null,null,{"$f":"IF(L71>0,B98,\"\")","v":""},null,null,null,{"$f":"D98","v":0},null,null,null,null,null,null,null,null,null,null,null,null,null,null,{"$f":"matrixen!B144","v":"Waaier van nagerechten (gebak, ijs, chocomousse, fruit)"}]
[null,null,null,null,"aan tafel om:",null,null,{"$f":"IF(L72>0,B33,\"\")","v":"Aardappel in de pel"},null,null,null,{"$f":"D33","v":"inbegrepen"},null,null,null,null,null,null,null,null,null,null,null,null,null,null,{"$f":"matrixen!B145","v":"IJstaart ambachtelijk, speciale vorm, smaak naar keuze"}]
[null,null,null,null,null,null,null,"groenten en sausen",null,null,null,"inbegrepen",null,null,null,null,null,null,null,null,null,null,null,null,null,null,{"$f":"matrixen!B146","v":"Trio van witte- melk- en fondantchocolade op amandelbiscuit  "}]
[null,null,null,null,"Uw naam:",null,null,{"$f":"IF(B36=matrixen!$B$112,\"\",B36)","v":""},null,{"$f":"IF(F36=matrixen!$E$112,\"\",F36)","v":""},null,{"$f":"F43","v":0},null,null,null,null,null,null,null,null,null,null,null,null,null,null,{"$f":"matrixen!B147","v":"Stel zelf uw mini dessertbordje samen met 4 dessertjes"}]
[null,null,null,null,"Adres:",null,null,{"$f":"IF(B37=matrixen!$B$112,\"\",B37)","v":""},null,{"$f":"IF(F37=matrixen!$E$112,\"\",F37)","v":""},null,{"$f":"F44","v":0},null,null,null,null,null,null,null,null,null,null,null,null,null,null,{"$f":"matrixen!B148","v":"Coupe met vers fruit en verse slagroom."}]
[null,null,null,null,"Stad:",null,null,{"$f":"IF(B38=matrixen!$B$112,\"\",B38)","v":""},null,{"$f":"IF(F38=matrixen!$E$112,\"\",F38)","v":""},null,null,null,null,null,null,null,null,null,null,null,null,null,null,null,null,{"$f":"matrixen!B149","v":"Aardbeiensoepje met sinaasappel in seizoen"}]
[null,null,null,null,"Tel nr:",null,null,{"$f":"IF(B39=matrixen!$B$112,\"\",B39)","v":""},null,{"$f":"IF(F39=matrixen!$E$112,\"\",F39)","v":""},null,null,null,null,null,null,null,null,null,null,null,null,null,null,null,null,{"$f":"matrixen!B150","v":"Coupe met aardbeien en verse slagroom."}]
[null,null,null,null,"reden feest:",null,null,{"$f":"IF(B40=matrixen!$B$112,\"\",B40)","v":""},null,{"$f":"IF(F40=matrixen!$E$112,\"\",F40)","v":""},null,null,null,null,null,null,null,null,null,null,null,null,null,null,null,null,{"$f":"matrixen!B151","v":"Dame blanche"}]
[null,null,null,null,"Opmerking:",null,null,"Basisprijs BBQ:",{"$f":"D35","v":28},null,{"$f":"IF(L79>0,\"supplement vis:\",\"\")","v":""},{"$f":"D39","v":0},null,null,null,null,null,null,null,null,null,null,null,null,null,null,{"$f":"matrixen!B152","v":"- frambozentaart"}]
[null,null,null,null,null,null,null,{"$f":"B45","v":"Huiswijn, bieren en frisdranken als forfait"},null,null,null,{"$f":"D45","v":2.8},null,null,null,null,null,null,null,null,null,null,null,null,null,null,{"$f":"matrixen!B153","v":"- progres"}]
[null,null,null,null,"geraamde totalen uit andere rekenbladen:",null,null,{"$f":"IF(L81>0,B49,\"\")","v":""},null,null,null,{"$f":"D49","v":0},null,null,null,null,null,null,null,null,null,null,null,null,null,null,{"$f":"matrixen!B154","v":"- fruitgebakje"}]
[null,null,"(vb: kindermenus)",null,null,null,null,{"$f":"IF(L82>0,B56,\"\")","v":""},null,null,null,{"$f":"D56","v":0},null,null,null,null,null,null,null,null,null,null,null,null,null,null,{"$f":"matrixen!B155","v":"- biscuit crème fraiche met coulis"}]
[null,null,null,null,"Geschat factuurtotaal:",{"$f":"Reservatievoorstel!I13","v":0},null,"Keuze drank na de maaltijd:",null,null,null,{"$f":"E58","v":"direct afrekenen"},null,null,null,null,null,null,null,null,null,null,null,null,null,null,{"$f":"matrixen!B156","v":"- warme appeltaart met een bolletje ijs"}]
[null,null,null,null,null,"(Gebaseerd op de door u ingebrachte gegevens)",null,null,null,null,null,null,null,null,null,null,null,null,null,null,null,null,null,null,null,null,{"$f":"matrixen!B157","v":"- zwarte woudtaart"}]
[null,null,null,null,"korting bij contante betaling:",{"$f":"F83*0.02","v":0},null,null,null,null,null,null,null,null,null,null,null,null,null,null,null,null,null,null,null,null,{"$f":"matrixen!B158","v":"Sabayon met rood fruit"}]
[null,"Mogelijke supplementen bij de recepties",null,null,"saldo:",{"$f":"F83-F85","v":0},null,"Gaat u akkoord met de algemene verkoopsvoorwaarden?",null,null,"ja",null,null,null,null,null,null,null,null,null,null,null,null,null,null,null,{"$f":"matrixen!B159","v":"Verse ananas met ijs en suikerspin"}]
[null,null,null,null,null,null,null,null,null,null,null,null,null,null,null,null,null,null,null,null,null,null,null,null,null,null,{"$f":"matrixen!B160","v":"Basis dessertbuffet met:"}]
[null,"Schuimwijn van het huis (reeds inbegrepen)",null,{"$f":"VLOOKUP(B88,matrixen!B23:I26,8,FALSE)","v":0},null,null,null,null,null,"Voorkeur tafelschikking: ","geen voorkeur",null,null,null,null,null,null,null,null,null,null,null,null,null,null,null,{"$f":"matrixen!B161","v":"Uitgebreid dessertbuffet met:"}]
[null,"Schuimwijn van het huis (reeds inbegrepen)",null,null,null,null,null,null,null,null,"geen voorkeur",null,null,null,null,null,null,null,null,null,null,null,null,null,null,null,{"$f":"matrixen!B162","v":"Uitgebreid en luxueus dessertbuffet met:"}]
[null,null,null,null,null,null,null,null,null,"Wijze van betaling: ","Betaling op de dag zelf (cash of bancontact), u bekomt 2% korting op het totaal",null,null,null,null,null,null,null,null,null,null,null,null,null,null,null,{"$f":"matrixen!B163","v":0}]
[null,"Eventueel: extra hapjes bij het aperitief.",null,null,null,null,null,null,null,null,null,null,null,null,null,null,null,null,null,null,null,null,null,null,null,null,{"$f":"matrixen!B164","v":0},{"$f":"matrixen!B169","v":"Nog geen keuze gemaakt"}]
[null,null,null,null,null,null,null,null,null,"Wenst u een factuur?","nee",null,null,null,null,null,null,null,null,null,null,null,null,null,null,null,null,{"$f":"matrixen!B170","v":"Koffie 3 X bediend"}]
[null,null,null,null,{"$f":"SUMIF(B94:B98,\"warme toostjes per stuk\",D94:D98)","v":0},{"$f":"IF($E$93>0,matrixen!B58,\"\")","v":""},{"$f":"SUMIF(B94:B98,\"koude toostjes per stuk\",D94:D98)","v":0},{"$f":"IF($G$93>0,matrixen!E58,\"\")","v":""},{"$f":"SUMIF(B94:B98,\"aperitiefglaasjes per stuk\",D94:D98)","v":0},{"$f":"IF($I$93>0,matrixen!H58,\"\")","v":""},{"$f":"IF(K92=\"ja\",\"Gelieve uw facturatiegegevens bij opmerkingen in te vullen.\",\"\")","v":""},null,null,null,null,null,null,null,null,null,null,null,null,null,null,null,null,{"$f":"matrixen!B171","v":"Koffie 3 X bediend met koekjes"}]
[null,"Maak hier uw keuze voor extra hapjes bij het aperitief",null,{"$f":"VLOOKUP(B94,matrixen!$B$44:$I$55,8,FALSE)","v":0},null,{"$f":"IF($E$93>0,matrixen!B59,\"\")","v":""},null,{"$f":"IF($G$93>0,matrixen!E59,\"\")","v":""},null,{"$f":"IF($I$93>0,matrixen!H59,\"\")","v":""},null,null,null,null,null,null,null,null,null,null,null,null,null,null,null,null,null,{"$f":"matrixen!B172","v":"Koffie 3 X bediend met pralines"}]
[null,"Maak hier uw keuze voor extra hapjes bij het aperitief",null,{"$f":"VLOOKUP(B95,matrixen!$B$44:$I$55,8,FALSE)","v":0},null,{"$f":"IF($E$93>0,matrixen!B60,\"\")","v":""},null,{"$f":"IF($G$93>0,matrixen!E60,\"\")","v":""},null,{"$f":"IF($I$93>0,matrixen!H60,\"\")","v":""},null,null,null,null,null,null,null,null,null,null,null,null,null,null,null,null,{"$f":"matrixen!B173","v":0}]
[null,"Maak hier uw keuze voor extra hapjes bij het aperitief",null,{"$f":"VLOOKUP(B96,matrixen!$B$44:$I$55,8,FALSE)","v":0},null,{"$f":"IF($E$93>0,matrixen!B61,\"\")","v":""},null,{"$f":"IF($G$93>0,matrixen!E61,\"\")","v":""},null,{"$f":"IF($I$93>0,matrixen!H61,\"\")","v":""},null,null,null,null,null,null,null,null,null,null,null,null,null,null,null,null,{"$f":"matrixen!A176","v":"Alle drank na de maaltijd komt op één rekening en wordt door de organisator van het feest betaald"}]
[null,"Maak hier uw keuze voor extra hapjes bij het aperitief",null,{"$f":"VLOOKUP(B97,matrixen!$B$44:$I$55,8,FALSE)","v":0},null,{"$f":"IF($E$93>0,matrixen!B62,\"\")","v":""},null,{"$f":"IF($G$93>0,matrixen!E62,\"\")","v":""},null,{"$f":"IF($I$93>0,matrixen!H62,\"\")","v":""},null,null,null,null,null,null,null,null,null,null,null,null,null,null,null,null,{"$f":"matrixen!A177","v":"Elke gast die na de maaltijd een drankje bestelt rekent direct af aan de bar"}]
[null,"Maak hier uw keuze voor extra hapjes bij het aperitief",null,{"$f":"VLOOKUP(B98,matrixen!$B$44:$I$55,8,FALSE)","v":0},null,{"$f":"IF($E$93>0,matrixen!B63,\"\")","v":""},null,{"$f":"IF($G$93>0,matrixen!E63,\"\")","v":""},null,{"$f":"IF($I$93>0,matrixen!H63,\"\")","v":""},null,null,null,null,null,null,null,null,null,null,null,null,null,null,null,null,{"$f":"matrixen!A178","v":"Forfait voor drank naar believen (alle bieren en frisdranken van de drankkaart in de zaal) na een maaltijd. pp: "}]
[null,"Maak hier uw keuze voor extra hapjes bij het aperitief",null,null,null,{"$f":"IF($E$93>0,matrixen!B64,\"\")","v":""},null,{"$f":"IF($G$93>0,matrixen!E64,\"\")","v":""}]
[null,null,null,null,null,null,null,null,null,null,null,null,null,null,null,null,null,null,null,null,null,null,null,null,null,null,{"$f":"matrixen!A204","v":"ja"}]
[null,null,null,null,null,null,null,null,null,null,null,null,null,null,null,null,null,null,null,null,null,null,null,null,null,null,{"$f":"matrixen!A205","v":"nee"}]
[]
[null,null,null,null,null,null,null,null,null,null,null,null,null,null,null,null,null,null,null,null,null,null,null,null,null,null,"geen voorkeur"]
[null,null,null,null,null,null,null,null,null,null,null,null,null,null,null,null,null,null,null,null,null,null,null,null,null,null,"zoveel mogelijk ronde tafels van 6 à 8 personen"]
[null,null,null,null,null,null,null,null,null,null,null,null,null,null,null,null,null,null,null,null,null,null,null,null,null,null,"liever lange tafels ev. In U-vorm of H-vorm."]
[]
[null,null,null,null,null,null,null,null,null,null,null,null,null,null,null,null,null,null,null,null,null,null,null,null,null,null,{"$f":"matrixen!A380","v":"Betaling op de dag zelf (cash of bancontact), u bekomt 2% korting op het totaal"}]
[null,null,null,null,null,null,null,null,null,null,null,null,null,null,null,null,null,null,null,null,null,null,null,null,null,null,{"$f":"matrixen!A381","v":"Storting op BE 48 4631 1391 2127 of op BE 14 3770 7615 9383, min. 7 dagen voor het feest, 2% korting"}]
[null,null,null,null,null,null,null,null,null,null,null,null,null,null,null,null,null,null,null,null,null,null,null,null,null,null,{"$f":"matrixen!A382","v":"Betaling na het feest. Gelieve 40 % voorschot te storten op BE48 4631 1391 2127 of op BE14 3770 7615 9383 . Geen korting."}]

{"sheet":"matrixen","index":1,"n_rows":491,"n_cols":28,"rows_kept":491,"cut":false,"hidden":true,"merged":[]}
[null,"2018-02-23",null,null,null,null,null,null,null,null,null,"lam, zwanen enz..  . Met foto suppl.",null,null,null,15]
["Deze bladen kopiëren en waarden plakken en alle prijzen van de rekenmodules worden aangepast",null,null,null,null,null,null,null,null,null,null,"Foto op de taart: suppl. € ",null,null,0.7,"per stuk taart en € ",null,10," per foto"]
[]
[null,"Minimaal verbruik feest",null,null,950]
[]
[]
[]
[]
[]
[]
[null,"Maak in dit vak uw keuze voor het aperitief",null,null,null,null,null,null,null,null,null,null,"Aanpassingen in de omschrijving van de receptie doen IN het kader en alles blijft ok. Allemaal in 1 keer behalve rec & bb borrels",null,null,null,null,null,null,null,null,"Omschrijving kan in het kader."]
[null,"1 aperitief per persoon",null,null,null,null,null,null,6,null,null,null,"Het tabblad recepties en babyb bij aanpassingen niet meenemen wnat daar staan extra rfecepties op.",null,null,null,null,null,null,null,null,"Recepties hier worden overal aangepast."]
[null,"2 aperitieven per persoon",null,null,null,null,null,null,10,null,null,null,"Dat moet dus apart worden aangepast."]
[null,"Receptie F",null,null,null,null,null,null,15.5,null,"Maak in dit vak uw keuze voor het aperitief","1 aperitief per persoon","2 aperitieven per persoon","Receptie F","Receptie E","Receptie D","Receptie C","Receptie B","Receptie A","Maak in dit vak uw keuze voor het aperitief","1 aperitief per persoon","2 aperitieven per persoon","Receptie F","Receptie E","Receptie D","Receptie C","Receptie B","Receptie A"]
[null,"Receptie E",null,null,null,null,null,null,12.600000000000001,null,null,"1 per persoon,  ","2 per persoon,  ","Zeer uitgebreide receptie","Uitgebreide receptie","Basis receptie.","Zeer uitgebreide receptie","Uitgebreide receptie","Basis receptie.",null,"vrije keuze","vrije keuze","dranken inbegrepen gedurende 2 uur","dranken inbegrepen gedurende 2 uur","dranken inbegrepen gedurende 2 uur","dranken inbegrepen gedurende 2 uur","dranken inbegrepen gedurende 2 uur","dranken inbegrepen gedurende 2 uur"]
[null,"Receptie D",null,null,null,null,null,null,11.100000000000001,null,null,"eventueel tweede wordt","eventueel derde wordt","met 4 aperitiefglaasjes,","met 4 aperitiefglaasjes","Dranken 2 uur inbegrepen.","met 3 koude toastjes en 3 warme ","met 3 koude toastjes en 3 warme ","Dranken 2 uur inbegrepen.",null,"Porto rood","Porto rood","met Schuimwijn van het huis en alle frisdranken en bieren naar believen, ","met Schuimwijn van het huis en alle frisdranken en bieren naar believen, ","met Schuimwijn van het huis en alle frisdranken en bieren naar believen, ","met Schuimwijn van het huis en alle frisdranken en bieren naar believen, ","met Schuimwijn van het huis en alle frisdranken en bieren naar believen, ","met Schuimwijn van het huis en alle frisdranken en bieren naar believen, "]
[null,"Receptie C",null,null,null,null,null,null,15.5,null,null,"direct afgerekend of","direct afgerekend of","een soepje, 2 warme hapjes"," en drank gedurende 2 uur.",null,"hapjes, kleine versnaperingen","hapjes, kleine versnaperingen",null,null,"Martini","Martini","Assortiment van 4 aperitiefglaasjes (samenstelling kan verschillen), een soepje en 2 warme hapjes","Assortiment van 4 aperitiefglaasjes: (samenstelling kan verschillen)","kaasjes, salami, tapenades,","kaasjes, salami,  olijven, nootjes en chips.","kaasjes, salami,  olijven, nootjes en chips.","tapenades"]
[null,"Receptie B",null,null,null,null,null,null,12.600000000000001,null,null,"komt op 1 rekening","komt op 1 rekening","en drank gedurende 2 uur.",null,null,"en drank gedurende 2 uur.",null,null,null,"Kir","Kir","* eendenmousse met rode bessen en koornbloemblaadjes","* eendenmousse met rode bessen en koornbloemblaadjes"," olijven en nootjes en chips","lepeltje gevuld met vismousse","lepeltje gevuld met vismousse","nootjes en chips"]
[null,"Receptie A",null,null,null,null,null,null,10,null,null,null,null,null,null,null,null,null,null,null,"Frisdrank","Frisdrank","* luzerne met gerookte zalm, eitjes van vliegende vis in wasabi","* luzerne met gerookte zalm, eitjes van vliegende vis in wasabi",null,"lepeltje gevuld met vleesmousse","lepeltje gevuld met vleesmousse"]
[null,null,null,null,null,null,null,null,null,null,null,null,null,null,null,null,null,null,null,null,"Bieren","Bieren","* mousse van krab met rode bietscheutjes","* mousse van krab met rode bietscheutjes",null,"3 warme hapjes pp","3 warme hapjes pp"]
[null,null,null,null,null,null,null,null,null,null,null,null,null,null,null,null,null,null,null,null,"nootjes en chips inbegrepen","nootjes en chips inbegrepen","* preischeuten met garnalen en mini tomaat","* preischeuten met garnalen en mini tomaat",null,"* kippenbilletje * toastcupje * garnaal in filodeeg","* kippenbilletje * toastcupje * garnaal in filodeeg"]
[null,null,null,null,null,null,null,null,null,null,null,null,null,null,null,null,null,null,null,null,"TIP:","TIP:","* tomatensoepje en 2 warme hapjes, standaard een garnaal in filodeeg en een kippenvleugeltje",null,null,"3 koude toostjes pp"]
[null,"Schuimwijn van het huis (reeds inbegrepen)",null,null,null,null,null,null,0,null,null,null,null,null,null,null,null,null,null,null,"Een receptie naar believen","Receptie A is dezelfde prijs.","TIP: Er is veel meer keuze dan de standaard hapjes","TIP: Er is veel meer keuze dan de standaard hapjes",null,"* gerookte zalm * vissalade * grijze garnalen"]
[null,"Cava",null,null,null,null,null,null,3.25,null,null,null,null,null,null,null,null,null,null,null,"kost evenveel als","Maar daar is de drank naar believen gedurende ","die hierboven vermeld worden. Via deze tool kunt u dit","die hierboven vermeld worden. Via deze tool kunt u dit",null,"Tip: Bovenstaande hapjes kunnen ook gewijzigd worden.","Tip: Bovenstaande hapjes kunnen ook gewijzigd worden."]
[null,"Champagne",null,null,null,null,null,null,7,null,null,null,null,null,null,null,null,null,null,null,"2 aperitieven per persoon.","maximaal 2 uur. En er zijn wat tapenades.","niet aanpassen maar wel als u bij ons langskomt. ","niet aanpassen maar wel als u bij ons langskomt. ",null,"Niet via deze tool maar wel bij reservatie","Niet via deze tool maar wel bij reservatie"]
[null,null,null,null,null,null,null,null,null,null,null,null,null,null,null,null,null,null,null,null,"Selecteer daartoe receptie A!","We komen rond met schuimwijn en ","De keuzemogelijkheden staan gedetailleerd ","De keuzemogelijkheden staan gedetailleerd ",null,"De keuzemogelijkheden staan gedetailleerd ","De keuzemogelijkheden staan gedetailleerd "]
[null,"Schuimwijn brut",null,null,null,null,null,null,0,null,null,null,null,null,null,null,null,null,null,null,null,"fruitsap maar alle bovenstaande dranken","beschreven in het pdf document \"prijslijst\" pagina 9.","beschreven in het pdf document \"prijslijst\" pagina 9.",null,"beschreven in het pdf document \"prijslijst\" pagina 9.","beschreven in het pdf document \"prijslijst\" pagina 9."]
[null,null,null,null,null,null,null,null,null,null,null,null,null,null,null,null,null,null,null,null,null,"kunnen op vraag ook bekomen worden.","U krijgt hier wel een prijsindicatie maar weet dat er meer moglijkheden zijn.","U krijgt hier wel een prijsindicatie maar weet dat er meer moglijkheden zijn.",null,"U krijgt hier wel een prijsindicatie maar weet dat er meer moglijkheden zijn.","U krijgt hier wel een prijsindicatie maar weet dat er meer moglijkheden zijn."]
[null,null,null,null,null,null,null,null,null,null,null,null,null,null,null,null,null,null,null,"Menu's BBQ"]
[null,"Dessertbuffet zonder maaltijd: ",null,null,null,null,null,null,16.5]
[null,"Koffie 3 X bediend",null,null,null,null,null,null,2.5,null,null,null,null,null,null,null,null,null,1,"Dit menu kunt u samenstellen en wijzigen via de tool Barbecue's"]
[null,null,null,null,null,null,null,null,null,null,null,null,null,null,null,null,null,null,2,"Prijs per volwassene:",null,null,null,null,null,40.15]
[null,null,null,null,null,null,null,null,null,null,null,null,null,null,null,null,null,null,3]
[null,"1 aperitief per persoon, vrije keuze",null,null,null,null,null,null,6,null,null,null,null,null,null,null,null,null,4,"1 aperitief per persoon",null,"vrije keuze",null,null,null,null,6]
[null,"Pineau des charentes wit",null,null,null,null,null,null,6,null,null,null,null,null,null,null,null,null,5,"Nootjes, chips en zoutkoekjes zoveel u wenst,  per pers."]
[null,"Maison (basis safari)",null,null,null,null,null,null,6,null,null,null,null,null,null,null,null,null,6]
[null,"Kir royale",null,null,null,null,null,null,6,null,null,null,null,null,null,null,null,null,7]
[null,"Sherry dry",null,null,null,null,null,null,6,null,null,null,null,null,null,null,null,null,8,"- Worst",null,null,null,null,null,null,28]
[null,"Porto",null,null,null,null,null,null,6,null,null,null,null,null,null,null,null,null,9,"- Kippenboutjes"]
[null,"Martini (wit/rood)",null,null,null,null,null,null,6,null,null,null,null,null,null,null,null,null,10,"- Gemarineerde kotelet  "]
[null,"Kir",null,null,null,null,null,null,6,null,null,null,null,null,null,null,null,null,11,"- Lamskoteletjes "]
[null,"Schuimwijn",null,null,null,null,null,null,6,null,null,null,null,null,null,null,null,null,12,"- Varkensbrochet"]
[null,null,null,null,null,null,null,null,null,null,null,null,null,null,null,null,null,null,13,"Koude aardappelen"]
[null,"Maak hier uw keuze voor extra hapjes bij het aperitief",null,null,null,null,null,null,null,null,null,null,null,null,null,null,null,null,14,"Groenten en sausen"]
[null,"Nootjes, chips en zoutkoekjes zoveel u wenst,  per pers.",null,null,null,null,null,null,"gratis",null,null,null,null,null,null,null,null,null,15]
[null,"Rauwe groenten (wortel, bloemkool, cocktailsaus) prijs per persoon:",null,null,null,null,null,null,1,null,null,null,null,null,null,null,null,null,16,"Huiswijn, bieren en frisdranken als forfait",null,null,null,null,null,null,2.8]
[null,"Warme toostjes per stuk",null,null,null,null,null,null,1,null,null,null,null,null,null,null,null,null,17]
[null,"Koude toostjes per stuk",null,null,null,null,null,null,1.3,null,null,null,null,null,null,null,null,null,18,"Koffie 3 X bediend met koekjes",null,null,null,null,null,null,3.35]
[null,"aperitiefglaasjes per stuk",null,null,null,null,null,null,2]
[null,"Oesters per stuk warm of koud",null,null,null,null,null,null,2.2999999999999998,null,null,null,null,null,null,null,null,null,1,"Dit menu kunt u samenstellen en wijzigen via de tool Barbecue's"]
[null,"wachtbordje met vispasteitje",null,null,null,null,null,null,4,null,null,null,null,null,null,null,null,null,2,"Prijs per volwassene:",null,null,null,null,null,44.15]
[null,"wachtbordje van reuzentoost met gerookte zalm",null,null,null,null,null,null,4,null,null,null,null,null,null,null,null,null,3]
[null,"wachtbordje van lauw slaatje met gerookte zalm en scampi's",null,null,null,null,null,null,6,null,null,null,null,null,null,null,null,null,4,"2 aperitieven per persoon",null,null,"vrije keuze",null,null,null,10]
[null,null,null,null,null,null,null,null,null,null,null,null,null,null,null,null,null,null,5,"Nootjes, chips en zoutkoekjes zoveel u wenst,  per pers."]
[null,null,null,null,null,null,null,null,null,null,null,null,null,null,null,null,null,null,6]
[null,null,null,null,null,null,null,null,null,null,null,null,null,null,null,null,null,null,7]
[null,null,null,null,null,null,null,null,null,null,null,null,null,null,null,null,null,null,8,"- Worst",null,null,null,null,null,null,28]
[null,"Keuze warme toostjes",null,null,"Keuze koude toostjes",null,null,"Keuze aperoglaasjes",null,null,null,null,null,null,null,null,null,null,9,"- Kippenboutjes"]
[null,"(bij reservatie te bepalen)",null,null,"(bij reservatie te bepalen)",null,null,"(bij reservatie te bepalen)",null,null,null,null,null,null,null,null,null,null,10,"- Gemarineerde kotelet  "]
[null,"kippenbilletjes",null,null,"toost garnaal koud",null,null,"aperoglaasje eendenmousse",null,null,null,null,null,null,null,null,null,null,11,"- Lamskoteletjes "]
[null,"toostcupje",null,null,"toost gerookte zalm koud",null,null,"aperoglaasje gerookte zalm",null,null,null,null,null,null,null,null,null,null,12,"- Varkensbrochet"]
[null,"garnaal in filo",null,null,"toost krabsla koud",null,null,"aperoglaasje mousse van krab",null,null,null,null,null,null,null,null,null,null,13,"Koude aardappelen"]
[null,"mini croque",null,null,"toost eendenpastei koud",null,null,"aperoglaasje tomaat / garnaal",null,null,null,null,null,null,null,null,null,null,14,"Groenten en sausen"]
[null,"scampi enz….",null,null,null,null,null,"en nog veel mogelijkheden",null,null,null,null,null,null,null,null,null,null,15]
[null,null,null,null,null,null,null,null,null,null,null,null,null,null,null,null,null,null,16,"Huiswijn, bieren en frisdranken als forfait",null,null,null,null,null,null,2.8]
[null,null,null,null,null,null,null,null,null,null,null,null,null,null,null,null,null,null,17]
[null,null,null,null,null,null,null,null,null,null,null,null,null,null,null,null,null,null,18,"Koffie 3 X bediend met koekjes",null,null,null,null,null,null,3.35]
[]
[null,null,null,null,null,null,null,null,null,null,null,null,null,null,null,null,null,null,1,"Dit menu kunt u samenstellen en wijzigen via de tool Barbecue's"]
[null,null,null,"Maak hier uw keuze",null,null,null,null,null,null,null,null,null,null,null,null,null,null,2,"Prijs per volwassene:",null,null,null,null,null,46.75]
[null,"Belegd met:",null,"parmaham",null,null,"€ ",4.5,null,null,null,null,null,null,null,null,null,null,3]
[null,null,null,"grijze garnalen",null,null,"€ ",4.2,null,null,null,null,null,null,null,null,null,null,4,"Receptie B",null,null,null,null,null,null,12.600000000000001]
[null,null,null,"gerookte zalm",null,null,"€ ",2.5,null,null,null,null,null,null,null,null,null,null,5,"dranken inbegrepen gedurende 2 uur en diverse warme en koude hapjes"]
[null,null,null,"zalmsalade",null,null,"€ ",2.5,null,null,null,null,null,null,null,null,null,null,6,"of Receptie E met aperitiefglaasjes"]
[null,null,null,"gerookte ham",null,null,"€ ",2.5,null,null,null,null,null,null,null,null,null,null,7]
[null,null,null,"vissla",null,null,"€ ",2.5,null,null,null,null,null,null,null,null,null,null,8,"- Worst",null,null,null,null,null,null,28]
[null," ",null,"kaas",null,null,"€ ",2.5,null,null,null,null,null,null,null,null,null,null,9,"- Kippenboutjes"]
[null,null,null,"gekookte ham",null,null,"€ ",2.5,null,null,null,null,null,null,null,null,null,null,10,"- Gemarineerde kotelet  "]
[null,null,null,"américain préparé",null,null,"€ ",2.5,null,null,null,null,null,null,null,null,null,null,11,"- Lamskoteletjes "]
[null,null,null,"krabsla",null,null,"€ ",2.5,null,null,null,null,null,null,null,null,null,null,12,"- Varkensbrochet"]
[null,null,null,"kipsla",null,null,"€ ",2.5,null,null,null,null,null,null,null,null,null,null,13,"Koude aardappelen"]
[null,null,null,null,null,null,null,null,null,null,null,null,null,null,null,null,null,null,14,"Groenten en sausen"]
[null,null,null,null,null,null,null,null,null,null,null,null,null,null,null,null,null,null,15]
[null,null,"uitgebreide fomule met toostjes in menuvorm (max 3uur)",null,null,null,null,null,null,null,null,null,null,null,null,null,null,null,16,"Huiswijn, bieren en frisdranken als forfait",null,null,null,null,null,null,2.8]
[null,null,"“3 koude voorgerechtjes”",null,null,null,null,null,null,null,null,null,null,null,null,null,null,null,17]
[null,null,"koud hapje met krabsla ",null,null,null,null,null,null,null,null,null,null,null,null,null,null,null,18,"Koffie 3 X bediend met koekjes",null,null,null,null,null,null,3.35]
[null,null,"koud hapje met gerookte zalm"]
[null,null,"koud hapje met grijze garnalen"]
[null,null,"“soepje”",null,null,null,null,null,null,null,null,null,null,null,null,null,null,null,1,"Dit menu kunt u samenstellen en wijzigen via de tool Barbecue's"]
[null,null,"1 mini soepje tomatenroom of vissoepje",null,null,null,null,null,null,null,null,null,null,null,null,null,null,null,2,"Prijs per volwassene:",null,null,null,null,null,44.15]
[null,null,"“3 warme gerechtjes”",null,null,null,null,null,null,null,null,null,null,null,null,null,null,null,3]
[null,null,"kippenboutje",null,null,null,null,null,null,null,null,null,null,null,null,null,null,null,4,"1 aperitief per persoon",null,"vrije keuze",null,null,null,null,6]
[null,null,"mini loempia",null,null,null,null,null,null,null,null,null,null,null,null,null,null,null,5,"Nootjes, chips en zoutkoekjes zoveel u wenst,  per pers."]
[null,null,"mini croque monsieur",null,null,null,null,null,null,null,null,null,null,null,null,null,null,null,6]
[null,null,"“2 dessertjes”",null,null,null,null,null,null,null,null,null,null,null,null,null,null,null,7]
[null,null,"mini-brochetje met druifje, ananas en meloenbolletje",null,null,null,null,null,null,null,null,null,null,null,null,null,null,null,8,"- Brochette met gepelde scampi's",null,null,null,null,null,null,4]
[null,null,"mini confituurtaartje",null,null,null,null,null,null,null,null,null,null,null,null,null,null,null,9,"- Stukje zalm en papillotte"]
[null,null,null,null,null,null,null,null,null,null,null,null,null,null,null,null,null,null,10,"- Worst",null,null,null,null,null,null,28]
[null,null,null,null,null,null,null,null,null,null,null,null,null,null,null,null,null,null,11,"- Lamskoteletjes "]
[null,"Koude aardappelen",null,null,null,null,"inbegrepen",null,null,null,null,null,null,null,null,null,null,null,12,"- Varkensbrochet"]
[null,"Aardappel in de pel",null,null,null,null,"inbegrepen",null,null,null,null,null,null,null,null,null,null,null,13,"Koude aardappelen"]
[null,"1/2 koude aardappelen en 1/2 aardappel in de pel",null,null,null,null,"inbegrepen",null,null,null,null,null,null,null,null,null,null,null,14,"Groenten en sausen"]
[null,"frietjes (supplement)",null,null,null,null,1,null,null,null,null,null,null,null,null,null,null,null,15]
[null,null,null,null,null,null,null,null,null,null,null,null,null,null,null,null,null,null,16,"Huiswijn, bieren en frisdranken als forfait",null,null,null,null,null,null,2.8]
[null,null,null,null,null,null,null,null,null,null,null,null,null,null,null,null,null,null,17]
[null,null,null,null,null,null,null,null,null,null,null,null,null,null,null,null,null,null,18,"Koffie 3 X bediend met koekjes",null,null,null,null,null,null,3.35]
[]
[null,null,null,null,null,null,null,null,null,null,null,null,null,null,null,null,null,null,1,"Dit menu kunt u samenstellen en wijzigen via de tool Barbecue's"]
[null,null,null,null,null,null,null,null,null,null,null,null,null,null,null,null,null,null,2,"Prijs per volwassene:",null,null,null,null,null,48.15]
[null,null,null,null,null,null,null,null,null,null,null,null,null,null,null,null,null,null,3]
[null,null,null,null,null,null,null,null,null,null,null,null,null,null,null,null,null,null,4,"2 aperitieven per persoon",null,null,"vrije keuze",null,null,null,10]
[1,"Kies uit deze vleesspecialiteiten",null,1,"supp.  visgerechten / rund",null,null,null,null,null,null,null,null,null,null,null,null,null,5,"Nootjes, chips en zoutkoekjes zoveel u wenst,  per pers."]
[2,"- Worst",null,2,"- Brochette met gepelde scampi's",null,null,null,null,null,null,null,null,null,null,null,null,null,6]
[3,"- Kippenboutjes",null,3,"- Stukje zalm en papillotte",null,null,null,null,null,null,null,null,null,null,null,null,null,7]
[4,"- Gemarineerde kotelet  ",null,4,"- Stukje victoriabaarsfilet met fijne kruiden en papillotte",null,null,null,null,null,null,null,null,null,null,null,null,null,8,"- Brochette met gepelde scampi's",null,null,null,null,null,null,4]
[5,"- Lamskoteletjes ",null,5,"- Forel met fijne groenten en papillotte",null,null,null,null,null,null,null,null,null,null,null,null,null,9,"- Stukje zalm en papillotte"]
[6,"- Varkensbrochet",null,6,"- Witte zalm in een jasje van ham",null,null,null,null,null,null,null,null,null,null,null,null,null,10,"- Worst",null,null,null,null,null,null,28]
[7,"-  Kasselrib    ",null,7,"- Côte à l’os",null,null,null,null,null,null,null,null,null,null,null,null,null,11,"- Lamskoteletjes "]
[8,"- Ribbetjes",null,8,"- Steak",null,null,null,null,null,null,null,null,null,null,null,null,null,12,"- Varkensbrochet"]
[9,"- Worst",null,null,null,null,null,null,null,null,null,null,null,null,null,null,null,null,13,"Koude aardappelen"]
[10,"- Kippenboutjes",null,null,"U mag 2 warme sausen kiezen als u ook vis of rund kiest!",null,null,null,null,null,null,null,null,null,null,null,null,null,14,"Groenten en sausen"]
[null,null,null,null,"bearnaise",null,null,null,null,null,null,null,null,null,null,null,null,null,15]
[null,null,null,null,"romige portosaus",null,null,null,null,null,null,null,null,null,null,null,null,null,16,"Huiswijn, bieren en frisdranken als forfait",null,null,null,null,null,null,2.8]
[null,null,null,null,"pepersaus",null,null,null,null,null,null,null,null,null,null,null,null,null,17]
[null,null,null,null,"mosterd en look,",null,null,null,null,null,null,null,null,null,null,null,null,null,18,"Koffie 3 X bediend met koekjes",null,null,null,null,null,null,3.35]
[null,null,null,null,"champignonroomsaus"]
[null,null,null,null,"kreeftsaus met groentebrunoise",null,null,null,null,null,null,null,null,null,null,null,null,null,1,"Dit menu kunt u samenstellen en wijzigen via de tool Barbecue's"]
[null,null,null,null,"kreeftsaus zonder groenten",null,null,null,null,null,null,null,null,null,null,null,null,null,2,"Prijs per volwassene:",null,null,null,null,null,50.75]
[null,null,null,null,"saffraansaus",null,null,null,null,null,null,null,null,null,null,null,null,null,3]
[null,null,null,null,"bieslooksaus",null,null,null,null,null,null,null,null,null,null,null,null,null,4,"Receptie B",null,null,null,null,null,null,12.600000000000001]
[null,null,null,null,null,null,null,null,null,null,null,null,null,null,null,null,null,null,5,"dranken inbegrepen gedurende 2 uur en diverse warme en koude hapjes"]
[null,"basisprijs",null,null,"sup. Tov basisprijs",null,null,null,null,null,null,null,null,"       ",null,null,null,null,6,"of Receptie E met aperitiefglaasjes"]
[null,28,null,null,4,null,null,null,null,null,null,null,null,null,null,null,null,null,7]
[null,"Basisprijs BBQ",null,null,"sup vis",null,null,null,null,null,null,null,null,null,null,null,null,null,8,"- Brochette met gepelde scampi's",null,null,null,null,null,null,4]
[null,null,null,null,null,null,null,null,null,null,null,null,null,null,null,null,null,null,9,"- Stukje zalm en papillotte"]
[null,null,null,null,null,null,null,null,null,null,null,null,null,null,null,null,null,null,10,"- Worst",null,null,null,null,null,null,28]
[null,"Bio wijnen, bieren en frisdranken als forfait",null,null,null,null,null,null,null,null,null,null,0,null,null,null,null,null,11,"- Lamskoteletjes "]
[null,null,null,null,null,null,null,null,null,null,null,null,null,null,null,null,null,null,12,"- Varkensbrochet"]
[null,"Huiswijn, bieren en frisdranken als forfait",null,null,null,null,null,null,null,null,null,null,2.8,null,null,null,null,null,13,"Koude aardappelen"]
[null,"Domaine Joel Delauny Touraine  en/of Château Reynier, Bordeaux superieur,  bieren en frisdranken",null,null,null,null,null,null,null,null,null,null,7,null,null,null,null,null,14,"Groenten en sausen"]
[null,null,null,null,null,null,null,null,null,null,null,null,null,null,null,null,null,null,15]
[null,"Nog geen dessert geselecteerd",null,null,null,null,null,null,null,null,null,null,null,null,null,null,null,null,16,"Huiswijn, bieren en frisdranken als forfait",null,null,null,null,null,null,2.8]
[null,"Halve gegarneerde maan",null,null,null,null,null,null,8.8000000000000007,null,"Een echte smaakbom van chocolade, rode vruchten en basilicum",null,null,null,null,null,null,null,17]
[null,"Waaier van nagerechten (gebak, ijs, chocomousse, fruit)",null,null,null,null,null,null,6,null,"Zeer royaal bord met gebak, ijs, chocomousse en fruit",null,null,null,null,null,null,null,18,"Koffie 3 X bediend met koekjes",null,null,null,null,null,null,3.35]
[null,"IJstaart ambachtelijk, speciale vorm, smaak naar keuze",null,null,null,null,null,null,5.3,null,"Ijstaart met foto: 15 euro per foto (min personen). Speciale garnituren mits meerprijs mogelijk."]
[null,"Trio van witte- melk- en fondantchocolade op amandelbiscuit  ",null,null,null,null,null,null,5.9]
[null,"Stel zelf uw mini dessertbordje samen met 4 dessertjes",null,null,null,null,null,null,3.9,null,"Roomijs en/of Bruine chocolademousse en/of Pasteis de nata en/of ","Chocoladebavarois en/of Miserable en/of glaasje fruitsla met perensorbet en/of ","Witte chocolademousse en/of Roomsoes met warme chocoladesaus en/of Tiramisu en/of ","Javanais en/of Gebak peer-caramel en/of mini fruittaartje.",null,null,null,null,1,"Dit menu kunt u samenstellen en wijzigen via de tool Barbecue's"]
[null,"Coupe met vers fruit en verse slagroom.",null,null,null,null,null,null,3.9,null,"Vanilleijs, vers fruit en verse slagroom",null,null,null,null,null,null,null,2,"Prijs per volwassene:",null,null,null,null,null,41.15]
[null,"Aardbeiensoepje met sinaasappel in seizoen",null,null,null,null,null,null,3.9,null,"Sinaasappelsap met grand marnier en daarin vers gesneden aardbeien (alleen in seizoen)",null,null,null,null,null,null,null,3]
[null,"Coupe met aardbeien en verse slagroom.",null,null,null,null,null,null,3.9,null,"Vanilleijs, verse aardbeien en verse slagroom",null,null,null,null,null,null,null,4,"1 aperitief per persoon",null,"vrije keuze",null,null,null,null,6]
[null,"Dame blanche",null,null,null,null,null,null,3.9,null,"Vanilleijs, verse slagroom,warme chocoladesaus.",null,null,null,null,null,null,null,5,"Nootjes, chips en zoutkoekjes zoveel u wenst,  per pers."]
[null,"- frambozentaart",null,null,null,null,null,null,5.75,null,"De lekkerste van alle gebakjes.",null,null,null,null,null,null,null,6]
[null,"- progres",null,null,null,null,null,null,5.75,null,"Een klassieker.",null,null,null,null,null,null,null,7]
[null,"- fruitgebakje",null,null,null,null,null,null,3.9,null,"Klein maar fijn gebakje",null,null,null,null,null,null,null,8,"- Worst",null,null,null,null,null,null,28]
[null,"- biscuit crème fraiche met coulis",null,null,null,null,null,null,3.9,null,"Vrij groot stuk met slagroom. Foto op de taart: suppl. € 0,7 per stuk taart en € 10 per foto ",null,null,null,null,null,null,null,9,"- Kippenboutjes"]
[null,"- warme appeltaart met een bolletje ijs",null,null,null,null,null,null,3.9,null,"Hier heb je zowel gebak als vanilleijs.",null,null,null,null,null,null,null,10,"- Gemarineerde kotelet  "]
[null,"- zwarte woudtaart",null,null,null,null,null,null,5.75,null,"Biscuit met cacaopoeder in een tasje.",null,null,null,null,null,null,null,11,"- Lamskoteletjes "]
[null,"Sabayon met rood fruit",null,null,null,null,null,null,3.9,null,"Sabayon, fruit en ijs",null,null,null,null,null,null,null,12,"- Varkensbrochet"]
[null,"Verse ananas met ijs en suikerspin",null,null,null,null,null,null,3.9,null,null,null,null,null,null,null,null,null,13,"frietjes (supplement)",null,null,null,null,null,null,1]
[null,"Basis dessertbuffet met:",null,null,null,null,null,null,10,null,"vers fruit, verschillende soorten sorbet, chocolademousse, roomijs","variatie van miserable, javanais, pasteis de nata, roomsoes, speculoostaart,","De samenstelling van het buffet kan verschillen, naargelang de grootte van de groep",null,null,"Belangrijk: De prijs van dit dessertbuffet geldt alleen indien voorafgegaan door een maaltijd!!",null,null,14,"Groenten en sausen"]
[null,"Uitgebreid dessertbuffet met:",null,null,null,null,null,null,12,null,"vers fruit, verschillende soorten sorbet, chocolademousse, roomijs","variatie van miserable, javanais, pasteis de nata, roomsoes, speculoostaart,","De samenstelling van het buffet kan verschillen, naargelang de grootte van de groep","assortiment van mini-bavarois (framboos-passie-zwarte woud-pistache-chocolade praliné)",null,"Belangrijk: De prijs van dit dessertbuffet geldt alleen indien voorafgegaan door een maaltijd!!",null,null,15]
[null,"Uitgebreid en luxueus dessertbuffet met:",null,null,null,null,null,null,14,null,"vers fruit, verschillende soorten sorbet, chocolademousse, roomijs","variatie van miserable, javanais, pasteis de nata, roomsoes, speculoostaart,","De samenstelling van het buffet kan verschillen, naargelang de grootte van de groep","assortiment van mini-bavarois (framboos-passie-zwarte woud-pistache-chocolade praliné)","dessertglaasjes (framboos-amandel - trio chocolade - mango-caramel - chocolade praliné)","Belangrijk: De prijs van dit dessertbuffet geldt alleen indien voorafgegaan door een maaltijd!!",null,null,16,"Huiswijn, bieren en frisdranken als forfait",null,null,null,null,null,null,2.8]
[null,null,null,null,null,null,null,null,null,null,null,null,null,null,null,null,null,null,17]
[null,null,null,null,null,null,null,null,null,null,null,null,null,null,null,null,null,null,18,"Koffie 3 X bediend met koekjes",null,null,null,null,null,null,3.35]
[]
[null,null,null,null,null,null,null,null,null,null,null,null,null,null,null,null,null,null,1,"Dit menu kunt u samenstellen en wijzigen via de tool Barbecue's"]
[null,null,null,null,null,null,null,null,null,null,null,null,null,null,null,null,null,null,2,"Prijs per volwassene:",null,null,null,null,null,45.15]
[null,null,null,null,null,null,null,null,null,null,null,null,null,null,null,null,null,null,3]
[null,"Nog geen keuze gemaakt",null,null,null,null,null,null,null,null,null,null,null,null,null,null,null,null,4,"2 aperitieven per persoon",null,null,"vrije keuze",null,null,null,10]
[null,"Koffie 3 X bediend",null,null,null,null,null,"€ ",2.5,null,null,null,null,null,null,null,null,null,5,"Nootjes, chips en zoutkoekjes zoveel u wenst,  per pers."]
[null,"Koffie 3 X bediend met koekjes",null,null,null,null,null,"€ ",3.35,null,null,null,null,null,null,null,null,null,6]
[null,"Koffie 3 X bediend met pralines",null,null,null,null,null,"€ ",3.9,null,null,null,null,null,null,null,null,null,7]
[null,null,null,null,null,null,null,null,null,null,null,null,null,null,null,null,null,null,8,"- Worst",null,null,null,null,null,null,28]
[null,null,null,null,null,null,null,null,null,null,null,null,null,null,null,null,null,null,9,"- Kippenboutjes"]
[null,null,null,null,null,null,null,null,null,null,null,null,null,null,null,null,null,null,10,"- Gemarineerde kotelet  "]
["Alle drank na de maaltijd komt op één rekening en wordt door de organisator van het feest betaald",null,null,null,null,null,null,null,null,null,null,null,null,null,null,"één rekening",null,null,11,"- Lamskoteletjes "]
["Elke gast die na de maaltijd een drankje bestelt rekent direct af aan de bar",null,null,null,null,null,null,null,null,null,null,null,null,null,null,"direct afrekenen",null,null,12,"- Varkensbrochet"]
["Forfait voor drank naar believen (alle bieren en frisdranken van de drankkaart in de zaal) na een maaltijd. pp: ",null,null,null,null,null,null,null,null,null,null,null,null,null,16,16,null,null,13,"frietjes (supplement)",null,null,null,null,null,null,1]
["Indien  er geen volwaardige maaltijd wordt genomen, dienen er minstens 4 belegde broodjes genomen te worden en verhoogt het drankforfait tot € 28,00 ",null,null,null,null,null,null,null,null,null,null,null,null,null,null,null,null,null,14,"Groenten en sausen"]
["'s middags tot 21 u - 's avonds onbeperkt. Let op! Artikel 8 van de verkoopsvoorwaarden (zie laatste bladzijde) kan hier van toepassing zijn !!!!",null,null,null,null,null,null,null,null,null,null,null,null,null,null,null,null,null,15]
[null,null,null,null,null,null,null,null,null,null,null,null,null,null,null,null,null,null,16,"Huiswijn, bieren en frisdranken als forfait",null,null,null,null,null,null,2.8]
["Neem contact op met de zaakvoerder op tel nr 0475/618058",null,null,null,null,null,null,null,null,null,null,null,null,null,null,"x",null,null,17]
["om hier zeker geen misverstanden over te hebben!",null,null,null,null,null,null,null,null,null,null,null,null,null,null,null,null,null,18,"Koffie 3 X bediend met koekjes",null,null,null,null,null,null,3.35]
[]
[null,null,null,null,null,null,null,null,null,null,null,null,null,null,null,null,null,null,1,"Dit menu kunt u samenstellen en wijzigen via de tool Barbecue's"]
["Verbruik van DJ  ten laste van de klant",null,null,null,null,null,null,null,null,null,null,null,null,null,null,null,null,null,2,"Prijs per volwassene:",null,null,null,null,null,47.75]
[null,null,null,null,null,null,null,null,null,null,null,null,null,null,null,null,null,null,3]
["Voor onze vegetarische klanten:",null,null,null,null,null,null,null,null,null,null,null,null,null,null,null,null,null,4,"Receptie B",null,null,null,null,null,null,12.600000000000001]
[null,null,null,null,null,null,null,null,null,null,null,null,null,null,null,null,null,null,5,"dranken inbegrepen gedurende 2 uur en diverse warme en koude hapjes"]
["- Voor onze vegetarische klanten bereiden wij graag een aparte schotel. ",null,null,null,null,null,null,null,null,null,null,null,null,null,null,null,null,null,6,"of Receptie E met aperitiefglaasjes"]
["Wij vragen wel met aandrang om op voorhand te melden als er vegetariërs zijn.",null,null,null,null,null,null,null,null,null,null,null,null,null,null,null,null,null,7]
["Zij eten mee aan de prijs van de rest van de groep.",null,null,null,null,null,null,null,null,null,null,null,null,null,null,null,null,null,8,"- Worst",null,null,null,null,null,null,28]
[null,null,null,null,null,null,null,null,null,null,null,null,null,null,null,null,null,null,9,"- Kippenboutjes"]
[null,null,null,null,null,null,null,null,null,null,null,null,null,null,null,null,null,null,10,"- Gemarineerde kotelet  "]
[null,null,null,null,null,null,null,null,null,null,null,null,null,null,null,null,null,null,11,"- Lamskoteletjes "]
[null,null,null,null,null,null,null,null,null,null,null,null,null,null,null,null,null,null,12,"- Varkensbrochet"]
["Mensen met een speciaal dieet:",null,null,null,null,null,null,null,null,null,null,null,null,null,null,null,null,null,13,"frietjes (supplement)",null,null,null,null,null,null,1]
[null,null,null,null,null,null,null,null,null,null,null,null,null,null,null,null,null,null,14,"Groenten en sausen"]
["Wij houden rekening met speciale wensen van mensen die een dieet volgen, ",null,null,null,null,null,null,null,null,null,null,null,null,null,null,null,null,null,15]
["maar alleen indien op voorhand gemeld. ",null,null,null,null,null,null,null,null,null,null,null,null,null,null,null,null,null,16,"Huiswijn, bieren en frisdranken als forfait",null,null,null,null,null,null,2.8]
[null,null,null,null,null,null,null,null,null,null,null,null,null,null,null,null,null,null,17]
["Halal kan ook, onder toezicht van een moslim bereid.",null,null,null,null,null,null,null,null,null,null,null,null,null,null,null,null,null,18,"Koffie 3 X bediend met koekjes",null,null,null,null,null,null,3.35]
[]
["ja"]
["nee",null,null,null,null,null,null,null,null,null,null,null,null,null,null,null,null,null,1,"Dit menu kunt u samenstellen en wijzigen via de tool Barbecue's"]
[null,null,null,null,null,null,null,null,null,null,null,null,null,null,null,null,null,null,2,"Prijs per volwassene:",null,null,null,null,null,45.15]
[null,null,null,null,null,null,null,null,null,null,null,null,null,null,null,null,null,null,3]
[null,null,null,null,null,null,null,null,null,null,null,null,null,null,null,null,null,null,4,"1 aperitief per persoon",null,"vrije keuze",null,null,null,null,6]
[null,null,null,null,null,null,null,null,null,null,null,null,null,null,null,null,null,null,5,"Nootjes, chips en zoutkoekjes zoveel u wenst,  per pers."]
[null,null,null,null,null,null,null,null,null,null,null,null,null,null,null,null,null,null,6]
[null,null,null,null,null,null,null,null,null,null,null,null,null,null,null,null,null,null,7]
[null,null,null,null,null,null,null,null,null,null,null,null,null,null,null,null,null,null,8,"- Brochette met gepelde scampi's",null,null,null,null,null,null,4]
[null,null,null,null,null,null,null,null,null,null,null,null,null,null,null,null,null,null,9,"- Stukje zalm en papillotte"]
[null,null,null,null,null,null,null,null,null,null,null,null,null,null,null,null,null,null,10,"- Worst",null,null,null,null,null,null,28]
[null,null,null,null,null,null,null,null,null,null,null,null,null,null,null,null,null,null,11,"- Lamskoteletjes "]
[null,null,null,null,null,null,null,null,null,null,null,null,null,null,null,null,null,null,12,"- Varkensbrochet"]
[null,null,null,null,null,null,null,null,null,null,null,null,null,null,null,null,null,null,13,"frietjes (supplement)",null,null,null,null,null,null,1]
[null,null,null,null,null,null,null,null,null,null,null,null,null,null,null,null,null,null,14,"Groenten en sausen"]
[null,null,null,null,null,null,null,null,null,null,null,null,null,null,null,null,null,null,15]
[null,null,null,null,null,null,null,null,null,null,null,null,null,null,null,null,null,null,16,"Huiswijn, bieren en frisdranken als forfait",null,null,null,null,null,null,2.8]
[null,null,null,null,null,null,null,null,null,null,null,null,null,null,null,null,null,null,17]
[null,null,null,null,null,null,null,null,null,null,null,null,null,null,null,null,null,null,18,"Koffie 3 X bediend met koekjes",null,null,null,null,null,null,3.35]
[]
[null,null,null,null,null,null,null,null,null,null,null,null,null,null,null,null,null,null,1,"Dit menu kunt u samenstellen en wijzigen via de tool Barbecue's"]
[null,null,null,null,null,null,null,null,null,null,null,null,null,null,null,null,null,null,2,"Prijs per volwassene:",null,null,null,null,null,49.15]
[null,null,null,null,null,null,null,null,null,null,null,null,null,null,null,null,null,null,3]
[null,null,null,null,null,null,null,null,null,null,null,null,null,null,null,null,null,null,4,"2 aperitieven per persoon",null,null,"vrije keuze",null,null,null,10]
[null,null,null,null,null,null,null,null,null,null,null,null,null,null,null,null,null,null,5,"Nootjes, chips en zoutkoekjes zoveel u wenst,  per pers."]
[null,null,null,null,null,null,null,null,null,null,null,null,null,null,null,null,null,null,6]
[null,null,null,null,null,null,null,null,null,null,null,null,null,null,null,null,null,null,7]
[null,null,null,null,null,null,null,null,null,null,null,null,null,null,null,null,null,null,8,"- Brochette met gepelde scampi's",null,null,null,null,null,null,4]
[null,null,null,null,null,null,null,null,null,null,null,null,null,null,null,null,null,null,9,"- Stukje zalm en papillotte"]
[null,null,null,null,null,null,null,null,null,null,null,null,null,null,null,null,null,null,10,"- Worst",null,null,null,null,null,null,28]
[null,null,null,null,null,null,null,null,null,null,null,null,null,null,null,null,null,null,11,"- Lamskoteletjes "]
[null,null,null,null,null,null,null,null,null,null,null,null,null,null,null,null,null,null,12,"- Varkensbrochet"]
[null,null,null,null,null,null,null,null,null,null,null,null,null,null,null,null,null,null,13,"frietjes (supplement)",null,null,null,null,null,null,1]
[null,null,null,null,null,null,null,null,null,null,null,null,null,null,null,null,null,null,14,"Groenten en sausen"]
[null,null,null,null,null,null,null,null,null,null,null,null,null,null,null,null,null,null,15]
[null,null,null,null,null,null,null,null,null,null,null,null,null,null,null,null,null,null,16,"Huiswijn, bieren en frisdranken als forfait",null,null,null,null,null,null,2.8]
[null,null,null,null,null,null,null,null,null,null,null,null,null,null,null,null,null,null,17]
[null,null,null,null,null,null,null,null,null,null,null,null,null,null,null,null,null,null,18,"Koffie 3 X bediend met koekjes",null,null,null,null,null,null,3.35]
[]
[null,null,null,null,null,null,null,null,null,null,null,null,null,null,null,null,null,null,1,"Dit menu kunt u samenstellen en wijzigen via de tool Barbecue's"]
[null,null,null,null,null,null,null,null,null,null,null,null,null,null,null,null,null,null,2,"Prijs per volwassene:",null,null,null,null,null,51.75]
[null,null,null,null,null,null,null,null,null,null,null,null,null,null,null,null,null,null,3]
[null,null,null,null,null,null,null,null,null,null,null,null,null,null,null,null,null,null,4,"Receptie B",null,null,null,null,null,null,12.600000000000001]
[null,null,null,null,null,null,null,null,null,null,null,null,null,null,null,null,null,null,5,"dranken inbegrepen gedurende 2 uur en diverse warme en koude hapjes"]
[null,null,null,null,null,null,null,null,null,null,null,null,null,null,null,null,null,null,6,"of Receptie E met aperitiefglaasjes"]
[null,null,null,null,null,null,null,null,null,null,null,null,null,null,null,null,null,null,7]
[null,null,null,null,null,null,null,null,null,null,null,null,null,null,null,null,null,null,8,"- Brochette met gepelde scampi's",null,null,null,null,null,null,4]
[null,null,null,null,null,null,null,null,null,null,null,null,null,null,null,null,null,null,9,"- Stukje zalm en papillotte"]
[null,null,null,null,null,null,null,null,null,null,null,null,null,null,null,null,null,null,10,"- Worst",null,null,null,null,null,null,28]
[null,null,null,null,null,null,null,null,null,null,null,null,null,null,null,null,null,null,11,"- Lamskoteletjes "]
[null,null,null,null,null,null,null,null,null,null,null,null,null,null,null,null,null,null,12,"- Varkensbrochet"]
[null,null,null,null,null,null,null,null,null,null,null,null,null,null,null,null,null,null,13,"frietjes (supplement)",null,null,null,null,null,null,1]
[null,null,null,null,null,null,null,null,null,null,null,null,null,null,null,null,null,null,14,"Groenten en sausen"]
[null,null,null,null,null,null,null,null,null,null,null,null,null,null,null,null,null,null,15]
[null,null,null,null,null,null,null,null,null,null,null,null,null,null,null,null,null,null,16,"Huiswijn, bieren en frisdranken als forfait",null,null,null,null,null,null,2.8]
[null,null,null,null,null,null,null,null,null,null,null,null,null,null,null,null,null,null,17]
[null,null,null,null,null,null,null,null,null,null,null,null,null,null,null,null,null,null,18,"Koffie 3 X bediend met koekjes",null,null,null,null,null,null,3.35]
[]
[null,null,null,null,null,null,null,null,null,null,null,null,null,null,null,null,null,null,1,"Dit menu kunt u samenstellen en wijzigen via de tool Barbecue's"]
[null,null,null,null,null,null,null,null,null,null,null,null,null,null,null,null,null,null,2,"Prijs per volwassene:",null,null,null,null,null,37.35]
[null,null,null,null,null,null,null,null,null,null,null,null,null,null,null,null,null,null,3]
[null,null,null,null,null,null,null,null,null,null,null,null,null,null,null,null,null,null,4,"1 aperitief per persoon",null,"vrije keuze",null,null,null,null,6]
[null,null,null,null,null,null,null,null,null,null,null,null,null,null,null,null,null,null,5,"Nootjes, chips en zoutkoekjes zoveel u wenst,  per pers."]
[null,null,null,null,null,null,null,null,null,null,null,null,null,null,null,null,null,null,6]
[null,null,null,null,null,null,null,null,null,null,null,null,null,null,null,null,null,null,7]
[null,null,null,null,null,null,null,null,null,null,null,null,null,null,null,null,null,null,8,"- Worst",null,null,null,null,null,null,28]
[null,null,null,null,null,null,null,null,null,null,null,null,null,null,null,null,null,null,9,"- Kippenboutjes"]
[null,null,null,null,null,null,null,null,null,null,null,null,null,null,null,null,null,null,10,"- Gemarineerde kotelet  "]
[null,null,null,null,null,null,null,null,null,null,null,null,null,null,null,null,null,null,11,"- Lamskoteletjes "]
[null,null,null,null,null,null,null,null,null,null,null,null,null,null,null,null,null,null,12,"- Varkensbrochet"]
[null,null,null,null,null,null,null,null,null,null,null,null,null,null,null,null,null,null,13,"Koude aardappelen"]
[null,null,null,null,null,null,null,null,null,null,null,null,null,null,null,null,null,null,14,"Groenten en sausen"]
[null,null,null,null,null,null,null,null,null,null,null,null,null,null,null,null,null,null,15]
[null,null,null,null,null,null,null,null,null,null,null,null,null,null,null,null,null,null,16,"Bio wijnen, bieren en frisdranken als forfait",null,null,null,null,null,null,0]
[null,null,null,null,null,null,null,null,null,null,null,null,null,null,null,null,null,null,17]
[null,null,null,null,null,null,null,null,null,null,null,null,null,null,null,null,null,null,18,"Koffie 3 X bediend met koekjes",null,null,null,null,null,null,3.35]
[]
[null,null,null,null,null,null,null,null,null,null,null,null,null,null,null,null,null,null,1,"Dit menu kunt u samenstellen en wijzigen via de tool Barbecue's"]
[null,null,null,null,null,null,null,null,null,null,null,null,null,null,null,null,null,null,2,"Prijs per volwassene:",null,null,null,null,null,41.35]
[null,null,null,null,null,null,null,null,null,null,null,null,null,null,null,null,null,null,3]
[null,null,null,null,null,null,null,null,null,null,null,null,null,null,null,null,null,null,4,"2 aperitieven per persoon",null,null,"vrije keuze",null,null,null,10]
[null,null,null,null,null,null,null,null,null,null,null,null,null,null,null,null,null,null,5,"Nootjes, chips en zoutkoekjes zoveel u wenst,  per pers."]
[null,null,null,null,null,null,null,null,null,null,null,null,null,null,null,null,null,null,6]
[null,null,null,null,null,null,null,null,null,null,null,null,null,null,null,null,null,null,7]
[null,null,null,null,null,null,null,null,null,null,null,null,null,null,null,null,null,null,8,"- Worst",null,null,null,null,null,null,28]
[null,null,null,null,null,null,null,null,null,null,null,null,null,null,null,null,null,null,9,"- Kippenboutjes"]
[null,null,null,null,null,null,null,null,null,null,null,null,null,null,null,null,null,null,10,"- Gemarineerde kotelet  "]
[null,null,null,null,null,null,null,null,null,null,null,null,null,null,null,null,null,null,11,"- Lamskoteletjes "]
[null,null,null,null,null,null,null,null,null,null,null,null,null,null,null,null,null,null,12,"- Varkensbrochet"]
[null,null,null,null,null,null,null,null,null,null,null,null,null,null,null,null,null,null,13,"Koude aardappelen"]
[null,null,null,null,null,null,null,null,null,null,null,null,null,null,null,null,null,null,14,"Groenten en sausen"]
[null,null,null,null,null,null,null,null,null,null,null,null,null,null,null,null,null,null,15]
[null,null,null,null,null,null,null,null,null,null,null,null,null,null,null,null,null,null,16,"Bio wijnen, bieren en frisdranken als forfait",null,null,null,null,null,null,0]
[null,null,null,null,null,null,null,null,null,null,null,null,null,null,null,null,null,null,17]
[null,null,null,null,null,null,null,null,null,null,null,null,null,null,null,null,null,null,18,"Koffie 3 X bediend met koekjes",null,null,null,null,null,null,3.35]
[]
[null,null,null,null,null,null,null,null,null,null,null,null,null,null,null,null,null,null,1,"Dit menu kunt u samenstellen en wijzigen via de tool Barbecue's"]
[null,null,null,null,null,null,null,null,null,null,null,null,null,null,null,null,null,null,2,"Prijs per volwassene:",null,null,null,null,null,43.95]
[null,null,null,null,null,null,null,null,null,null,null,null,null,null,null,null,null,null,3]
[null,null,null,null,null,null,null,null,null,null,null,null,null,null,null,null,null,null,4,"Receptie B",null,null,null,null,null,null,12.600000000000001]
[null,null,null,null,null,null,null,null,null,null,null,null,null,null,null,null,null,null,5,"dranken inbegrepen gedurende 2 uur en diverse warme en koude hapjes"]
[null,null,null,null,null,null,null,null,null,null,null,null,null,null,null,null,null,null,6,"of Receptie E met aperitiefglaasjes"]
[null,null,null,null,null,null,null,null,null,null,null,null,null,null,null,null,null,null,7]
[null,null,null,null,null,null,null,null,null,null,null,null,null,null,null,null,null,null,8,"- Worst",null,null,null,null,null,null,28]
[null,null,null,null,null,null,null,null,null,null,null,null,null,null,null,null,null,null,9,"- Kippenboutjes"]
[null,null,null,null,null,null,null,null,null,null,null,null,null,null,null,null,null,null,10,"- Gemarineerde kotelet  "]
[null,null,null,null,null,null,null,null,null,null,null,null,null,null,null,null,null,null,11,"- Lamskoteletjes "]
[null,null,null,null,null,null,null,null,null,null,null,null,null,null,null,null,null,null,12,"- Varkensbrochet"]
[null,null,null,null,null,null,null,null,null,null,null,null,null,null,null,null,null,null,13,"Koude aardappelen"]
[null,null,null,null,null,null,null,null,null,null,null,null,null,null,null,null,null,null,14,"Groenten en sausen"]
[null,null,null,null,null,null,null,null,null,null,null,null,null,null,null,null,null,null,15]
[null,null,null,null,null,null,null,null,null,null,null,null,null,null,null,null,null,null,16,"Bio wijnen, bieren en frisdranken als forfait",null,null,null,null,null,null,0]
[null,null,null,null,null,null,null,null,null,null,null,null,null,null,null,null,null,null,17]
[null,null,null,null,null,null,null,null,null,null,null,null,null,null,null,null,null,null,18,"Koffie 3 X bediend met koekjes",null,null,null,null,null,null,3.35]
[]
[]
[null,null,null,null,null,null,null,null,null,null,null,null,null,null,null,null,null,null,1,"Dit menu kunt u samenstellen en wijzigen via de tool Barbecue's"]
[null,null,null,null,null,null,null,null,null,null,null,null,null,null,null,null,null,null,2,"Prijs per volwassene:",null,null,null,null,null,41.35]
[null,null,null,null,null,null,null,null,null,null,null,null,null,null,null,null,null,null,3]
[null,null,null,null,null,null,null,null,null,null,null,null,null,null,null,null,null,null,4,"1 aperitief per persoon",null,"vrije keuze",null,null,null,null,6]
[null,null,null,null,null,null,null,null,null,null,null,null,null,null,null,null,null,null,5,"Nootjes, chips en zoutkoekjes zoveel u wenst,  per pers."]
[null,null,null,null,null,null,null,null,null,null,null,null,null,null,null,null,null,null,6]
[null,null,null,null,null,null,null,null,null,null,null,null,null,null,null,null,null,null,7]
[null,null,null,null,null,null,null,null,null,null,null,null,null,null,null,null,null,null,8,"- Brochette met gepelde scampi's",null,null,null,null,null,null,4]
[null,null,null,null,null,null,null,null,null,null,null,null,null,null,null,null,null,null,9,"- Stukje zalm en papillotte"]
[null,null,null,null,null,null,null,null,null,null,null,null,null,null,null,null,null,null,10,"- Worst",null,null,null,null,null,null,28]
[null,null,null,null,null,null,null,null,null,null,null,null,null,null,null,null,null,null,11,"- Lamskoteletjes "]
[null,null,null,null,null,null,null,null,null,null,null,null,null,null,null,null,null,null,12,"- Varkensbrochet"]
[null,null,null,null,null,null,null,null,null,null,null,null,null,null,null,null,null,null,13,"Koude aardappelen"]
[null,null,null,null,null,null,null,null,null,null,null,null,null,null,null,null,null,null,14,"Groenten en sausen"]
[null,null,null,null,null,null,null,null,null,null,null,null,null,null,null,null,null,null,15]
[null,null,null,null,null,null,null,null,null,null,null,null,null,null,null,null,null,null,16,"Bio wijnen, bieren en frisdranken als forfait",null,null,null,null,null,null,0]
[null,null,null,null,null,null,null,null,null,null,null,null,null,null,null,null,null,null,17]
[null,null,null,null,null,null,null,null,null,null,null,null,null,null,null,null,null,null,18,"Koffie 3 X bediend met koekjes",null,null,null,null,null,null,3.35]
[]
[null,null,null,null,null,null,null,null,null,null,null,null,null,null,null,null,null,null,1,"Dit menu kunt u samenstellen en wijzigen via de tool Barbecue's"]
[null,null,null,null,null,null,null,null,null,null,null,null,null,null,null,null,null,null,2,"Prijs per volwassene:",null,null,null,null,null,45.35]
[null,null,null,null,null,null,null,null,null,null,null,null,null,null,null,null,null,null,3]
[null,null,null,null,null,null,null,null,null,null,null,null,null,null,null,null,null,null,4,"2 aperitieven per persoon",null,null,"vrije keuze",null,null,null,10]
[null,null,null,null,null,null,null,null,null,null,null,null,null,null,null,null,null,null,5,"Nootjes, chips en zoutkoekjes zoveel u wenst,  per pers."]
[null,null,null,null,null,null,null,null,null,null,null,null,null,null,null,null,null,null,6]
[null,null,null,null,null,null,null,null,null,null,null,null,null,null,null,null,null,null,7]
[null,null,null,null,null,null,null,null,null,null,null,null,null,null,null,null,null,null,8,"- Brochette met gepelde scampi's",null,null,null,null,null,null,4]
[null,null,null,null,null,null,null,null,null,null,null,null,null,null,null,null,null,null,9,"- Stukje zalm en papillotte"]
[null,null,null,null,null,null,null,null,null,null,null,null,null,null,null,null,null,null,10,"- Worst",null,null,null,null,null,null,28]
[null,null,null,null,null,null,null,null,null,null,null,null,null,null,null,null,null,null,11,"- Lamskoteletjes "]
[null,null,null,null,null,null,null,null,null,null,null,null,null,null,null,null,null,null,12,"- Varkensbrochet"]
[null,null,null,null,null,null,null,null,null,null,null,null,null,null,null,null,null,null,13,"Koude aardappelen"]
[null,null,null,null,null,null,null,null,null,null,null,null,null,null,null,null,null,null,14,"Groenten en sausen"]
[null,null,null,null,null,null,null,null,null,null,null,null,null,null,null,null,null,null,15]
[null,null,null,null,null,null,null,null,null,null,null,null,null,null,null,null,null,null,16,"Bio wijnen, bieren en frisdranken als forfait",null,null,null,null,null,null,0]
[null,null,null,null,null,null,null,null,null,null,null,null,null,null,null,null,null,null,17]
[null,null,null,null,null,null,null,null,null,null,null,null,null,null,null,null,null,null,18,"Koffie 3 X bediend met koekjes",null,null,null,null,null,null,3.35]
[]
[null,null,null,null,null,null,null,null,null,null,null,null,null,null,null,null,null,null,1,"Dit menu kunt u samenstellen en wijzigen via de tool Barbecue's"]
[null,null,null,null,null,null,null,null,null,null,null,null,null,null,null,null,null,null,2,"Prijs per volwassene:",null,null,null,null,null,47.95]
[null,null,null,null,null,null,null,null,null,null,null,null,null,null,null,null,null,null,3]
[null,null,null,null,null,null,null,null,null,null,null,null,null,null,null,null,null,null,4,"Receptie B",null,null,null,null,null,null,12.600000000000001]
[null,null,null,null,null,null,null,null,null,null,null,null,null,null,null,null,null,null,5,"dranken inbegrepen gedurende 2 uur en diverse warme en koude hapjes"]
[null,null,null,null,null,null,null,null,null,null,null,null,null,null,null,null,null,null,6,"of Receptie E met aperitiefglaasjes"]
[null,null,null,null,null,null,null,null,null,null,null,null,null,null,null,null,null,null,7]
[null,null,null,null,null,null,null,null,null,null,null,null,null,null,null,null,null,null,8,"- Brochette met gepelde scampi's",null,null,null,null,null,null,4]
[null,null,null,null,null,null,null,null,null,null,null,null,null,null,null,null,null,null,9,"- Stukje zalm en papillotte"]
[null,null,null,null,null,null,null,null,null,null,null,null,null,null,null,null,null,null,10,"- Worst",null,null,null,null,null,null,28]
[null,null,null,null,null,null,null,null,null,null,null,null,null,null,null,null,null,null,11,"- Lamskoteletjes "]
[null,null,null,null,null,null,null,null,null,null,null,null,null,null,null,null,null,null,12,"- Varkensbrochet"]
[null,null,null,null,null,null,null,null,null,null,null,null,null,null,null,null,null,null,13,"Koude aardappelen"]
[null,null,null,null,null,null,null,null,null,null,null,null,null,null,null,null,null,null,14,"Groenten en sausen"]
[null,null,null,null,null,null,null,null,null,null,null,null,null,null,null,null,null,null,15]
[null,null,null,null,null,null,null,null,null,null,null,null,null,null,null,null,null,null,16,"Bio wijnen, bieren en frisdranken als forfait",null,null,null,null,null,null,0]
[null,null,null,null,null,null,null,null,null,null,null,null,null,null,null,null,null,null,17]
[null,null,null,null,null,null,null,null,null,null,null,null,null,null,null,null,null,null,18,"Koffie 3 X bediend met koekjes",null,null,null,null,null,null,3.35]
[]
[]
[null,null,null,null,null,null,null,null,null,null,null,null,null,null,null,null,null,null,1,"Dit menu kunt u samenstellen en wijzigen via de tool Barbecue's"]
[null,null,null,null,null,null,null,null,null,null,null,null,null,null,null,null,null,null,2,"Prijs per volwassene:",null,null,null,null,null,38.35]
["Betaling op de dag zelf (cash of bancontact), u bekomt 2% korting op het totaal",null,null,null,null,null,null,null,null,null,null,null,null,null,null,null,null,null,3]
["Storting op BE 48 4631 1391 2127 of op BE 14 3770 7615 9383, min. 7 dagen voor het feest, 2% korting",null,null,null,null,null,null,null,null,null,null,null,null,null,null,null,null,null,4,"1 aperitief per persoon",null,"vrije keuze",null,null,null,null,6]
["Betaling na het feest. Gelieve 40 % voorschot te storten op BE48 4631 1391 2127 of op BE14 3770 7615 9383 . Geen korting.",null,null,null,null,null,null,null,null,null,null,null,null,null,null,null,null,null,5,"Nootjes, chips en zoutkoekjes zoveel u wenst,  per pers."]
[null,null,null,null,null,null,null,null,null,null,null,null,null,null,null,null,null,null,6]
[null,null,null,null,null,null,null,null,null,null,null,null,null,null,null,null,null,null,7]
[null,null,null,null,null,null,null,null,null,null,null,null,null,null,null,null,null,null,8,"- Worst",null,null,null,null,null,null,28]
[null,null,null,null,null,null,null,null,null,null,null,null,null,null,null,null,null,null,9,"- Kippenboutjes"]
[null,null,null,null,null,null,null,null,null,null,null,null,null,null,null,null,null,null,10,"- Gemarineerde kotelet  "]
[null,null,null,null,null,null,null,null,null,null,null,null,null,null,null,null,null,null,11,"- Lamskoteletjes "]
[null,null,null,null,null,null,null,null,null,null,null,null,null,null,null,null,null,null,12,"- Varkensbrochet"]
[null,null,null,null,null,null,null,null,null,null,null,null,null,null,null,null,null,null,13,"frietjes (supplement)",null,null,null,null,null,null,1]
[null,null,null,null,null,null,null,null,null,null,null,null,null,null,null,null,null,null,14,"Groenten en sausen"]
[null,null,null,null,null,null,null,null,null,null,null,null,null,null,null,null,null,null,15]
[null,null,null,null,null,null,null,null,null,null,null,null,null,null,null,null,null,null,16,"Bio wijnen, bieren en frisdranken als forfait",null,null,null,null,null,null,0]
[null,null,null,null,null,null,null,null,null,null,null,null,null,null,null,null,null,null,17]
[null,null,null,null,null,null,null,null,null,null,null,null,null,null,null,null,null,null,18,"Koffie 3 X bediend met koekjes",null,null,null,null,null,null,3.35]
[]
[null,null,null,null,null,null,null,null,null,null,null,null,null,null,null,null,null,null,1,"Dit menu kunt u samenstellen en wijzigen via de tool Barbecue's"]
[null,null,null,null,null,null,null,null,null,null,null,null,null,null,null,null,null,null,2,"Prijs per volwassene:",null,null,null,null,null,42.35]
[null,null,null,null,null,null,null,null,null,null,null,null,null,null,null,null,null,null,3]
[null,null,null,null,null,null,null,null,null,null,null,null,null,null,null,null,null,null,4,"2 aperitieven per persoon",null,null,"vrije keuze",null,null,null,10]
[null,null,null,null,null,null,null,null,null,null,null,null,null,null,null,null,null,null,5,"Nootjes, chips en zoutkoekjes zoveel u wenst,  per pers."]
[null,null,null,null,null,null,null,null,null,null,null,null,null,null,null,null,null,null,6]
[null,null,null,null,null,null,null,null,null,null,null,null,null,null,null,null,null,null,7]
[null,null,null,null,null,null,null,null,null,null,null,null,null,null,null,null,null,null,8,"- Worst",null,null,null,null,null,null,28]
[null,null,null,null,null,null,null,null,null,null,null,null,null,null,null,null,null,null,9,"- Kippenboutjes"]
[null,null,null,null,null,null,null,null,null,null,null,null,null,null,null,null,null,null,10,"- Gemarineerde kotelet  "]
[null,null,null,null,null,null,null,null,null,null,null,null,null,null,null,null,null,null,11,"- Lamskoteletjes "]
[null,null,null,null,null,null,null,null,null,null,null,null,null,null,null,null,null,null,12,"- Varkensbrochet"]
[null,null,null,null,null,null,null,null,null,null,null,null,null,null,null,null,null,null,13,"frietjes (supplement)",null,null,null,null,null,null,1]
[null,null,null,null,null,null,null,null,null,null,null,null,null,null,null,null,null,null,14,"Groenten en sausen"]
[null,null,null,null,null,null,null,null,null,null,null,null,null,null,null,null,null,null,15]
[null,null,null,null,null,null,null,null,null,null,null,null,null,null,null,null,null,null,16,"Bio wijnen, bieren en frisdranken als forfait",null,null,null,null,null,null,0]
[null,null,null,null,null,null,null,null,null,null,null,null,null,null,null,null,null,null,17]
[null,null,null,null,null,null,null,null,null,null,null,null,null,null,null,null,null,null,18,"Koffie 3 X bediend met koekjes",null,null,null,null,null,null,3.35]
[]
[null,null,null,null,null,null,null,null,null,null,null,null,null,null,null,null,null,null,1,"Dit menu kunt u samenstellen en wijzigen via de tool Barbecue's"]
[null,null,null,null,null,null,null,null,null,null,null,null,null,null,null,null,null,null,2,"Prijs per volwassene:",null,null,null,null,null,44.95]
[null,null,null,null,null,null,null,null,null,null,null,null,null,null,null,null,null,null,3]
[null,null,null,null,null,null,null,null,null,null,null,null,null,null,null,null,null,null,4,"Receptie B",null,null,null,null,null,null,12.600000000000001]
[null,null,null,null,null,null,null,null,null,null,null,null,null,null,null,null,null,null,5,"dranken inbegrepen gedurende 2 uur en diverse warme en koude hapjes"]
[null,null,null,null,null,null,null,null,null,null,null,null,null,null,null,null,null,null,6,"of Receptie E met aperitiefglaasjes"]
[null,null,null,null,null,null,null,null,null,null,null,null,null,null,null,null,null,null,7]
[null,null,null,null,null,null,null,null,null,null,null,null,null,null,null,null,null,null,8,"- Worst",null,null,null,null,null,null,28]
[null,null,null,null,null,null,null,null,null,null,null,null,null,null,null,null,null,null,9,"- Kippenboutjes"]
[null,null,null,null,null,null,null,null,null,null,null,null,null,null,null,null,null,null,10,"- Gemarineerde kotelet  "]
[null,null,null,null,null,null,null,null,null,null,null,null,null,null,null,null,null,null,11,"- Lamskoteletjes "]
[null,null,null,null,null,null,null,null,null,null,null,null,null,null,null,null,null,null,12,"- Varkensbrochet"]
[null,null,null,null,null,null,null,null,null,null,null,null,null,null,null,null,null,null,13,"frietjes (supplement)",null,null,null,null,null,null,1]
[null,null,null,null,null,null,null,null,null,null,null,null,null,null,null,null,null,null,14,"Groenten en sausen"]
[null,null,null,null,null,null,null,null,null,null,null,null,null,null,null,null,null,null,15]
[null,null,null,null,null,null,null,null,null,null,null,null,null,null,null,null,null,null,16,"Bio wijnen, bieren en frisdranken als forfait",null,null,null,null,null,null,0]
[null,null,null,null,null,null,null,null,null,null,null,null,null,null,null,null,null,null,17]
[null,null,null,null,null,null,null,null,null,null,null,null,null,null,null,null,null,null,18,"Koffie 3 X bediend met koekjes",null,null,null,null,null,null,3.35]
[]
[]
[null,null,null,null,null,null,null,null,null,null,null,null,null,null,null,null,null,null,1,"Dit menu kunt u samenstellen en wijzigen via de tool Barbecue's"]
[null,null,null,null,null,null,null,null,null,null,null,null,null,null,null,null,null,null,2,"Prijs per volwassene:",null,null,null,null,null,42.35]
[null,null,null,null,null,null,null,null,null,null,null,null,null,null,null,null,null,null,3]
[null,null,null,null,null,null,null,null,null,null,null,null,null,null,null,null,null,null,4,"1 aperitief per persoon",null,"vrije keuze",null,null,null,null,6]
[null,null,null,null,null,null,null,null,null,null,null,null,null,null,null,null,null,null,5,"Nootjes, chips en zoutkoekjes zoveel u wenst,  per pers."]
[null,null,null,null,null,null,null,null,null,null,null,null,null,null,null,null,null,null,6]
[null,null,null,null,null,null,null,null,null,null,null,null,null,null,null,null,null,null,7]
[null,null,null,null,null,null,null,null,null,null,null,null,null,null,null,null,null,null,8,"- Brochette met gepelde scampi's",null,null,null,null,null,null,4]
[null,null,null,null,null,null,null,null,null,null,null,null,null,null,null,null,null,null,9,"- Stukje zalm en papillotte"]
[null,null,null,null,null,null,null,null,null,null,null,null,null,null,null,null,null,null,10,"- Worst",null,null,null,null,null,null,28]
[null,null,null,null,null,null,null,null,null,null,null,null,null,null,null,null,null,null,11,"- Lamskoteletjes "]
[null,null,null,null,null,null,null,null,null,null,null,null,null,null,null,null,null,null,12,"- Varkensbrochet"]
[null,null,null,null,null,null,null,null,null,null,null,null,null,null,null,null,null,null,13,"frietjes (supplement)",null,null,null,null,null,null,1]
[null,null,null,null,null,null,null,null,null,null,null,null,null,null,null,null,null,null,14,"Groenten en sausen"]
[null,null,null,null,null,null,null,null,null,null,null,null,null,null,null,null,null,null,15]
[null,null,null,null,null,null,null,null,null,null,null,null,null,null,null,null,null,null,16,"Bio wijnen, bieren en frisdranken als forfait",null,null,null,null,null,null,0]
[null,null,null,null,null,null,null,null,null,null,null,null,null,null,null,null,null,null,17]
[null,null,null,null,null,null,null,null,null,null,null,null,null,null,null,null,null,null,18,"Koffie 3 X bediend met koekjes",null,null,null,null,null,null,3.35]
[]
[null,null,null,null,null,null,null,null,null,null,null,null,null,null,null,null,null,null,1,"Dit menu kunt u samenstellen en wijzigen via de tool Barbecue's"]
[null,null,null,null,null,null,null,null,null,null,null,null,null,null,null,null,null,null,2,"Prijs per volwassene:",null,null,null,null,null,46.35]
[null,null,null,null,null,null,null,null,null,null,null,null,null,null,null,null,null,null,3]
[null,null,null,null,null,null,null,null,null,null,null,null,null,null,null,null,null,null,4,"2 aperitieven per persoon",null,null,"vrije keuze",null,null,null,10]
[null,null,null,null,null,null,null,null,null,null,null,null,null,null,null,null,null,null,5,"Nootjes, chips en zoutkoekjes zoveel u wenst,  per pers."]
[null,null,null,null,null,null,null,null,null,null,null,null,null,null,null,null,null,null,6]
[null,null,null,null,null,null,null,null,null,null,null,null,null,null,null,null,null,null,7]
[null,null,null,null,null,null,null,null,null,null,null,null,null,null,null,null,null,null,8,"- Brochette met gepelde scampi's",null,null,null,null,null,null,4]
[null,null,null,null,null,null,null,null,null,null,null,null,null,null,null,null,null,null,9,"- Stukje zalm en papillotte"]
[null,null,null,null,null,null,null,null,null,null,null,null,null,null,null,null,null,null,10,"- Worst",null,null,null,null,null,null,28]
[null,null,null,null,null,null,null,null,null,null,null,null,null,null,null,null,null,null,11,"- Lamskoteletjes "]
[null,null,null,null,null,null,null,null,null,null,null,null,null,null,null,null,null,null,12,"- Varkensbrochet"]
[null,null,null,null,null,null,null,null,null,null,null,null,null,null,null,null,null,null,13,"frietjes (supplement)",null,null,null,null,null,null,1]
[null,null,null,null,null,null,null,null,null,null,null,null,null,null,null,null,null,null,14,"Groenten en sausen"]
[null,null,null,null,null,null,null,null,null,null,null,null,null,null,null,null,null,null,15]
[null,null,null,null,null,null,null,null,null,null,null,null,null,null,null,null,null,null,16,"Bio wijnen, bieren en frisdranken als forfait",null,null,null,null,null,null,0]
[null,null,null,null,null,null,null,null,null,null,null,null,null,null,null,null,null,null,17]
[null,null,null,null,null,null,null,null,null,null,null,null,null,null,null,null,null,null,18,"Koffie 3 X bediend met koekjes",null,null,null,null,null,null,3.35]
[]
[null,null,null,null,null,null,null,null,null,null,null,null,null,null,null,null,null,null,1,"Dit menu kunt u samenstellen en wijzigen via de tool Barbecue's"]
[null,null,null,null,null,null,null,null,null,null,null,null,null,null,null,null,null,null,2,"Prijs per volwassene:",null,null,null,null,null,48.95]
[null,null,null,null,null,null,null,null,null,null,null,null,null,null,null,null,null,null,3]
[null,null,null,null,null,null,null,null,null,null,null,null,null,null,null,null,null,null,4,"Receptie B",null,null,null,null,null,null,12.600000000000001]
[null,null,null,null,null,null,null,null,null,null,null,null,null,null,null,null,null,null,5,"dranken inbegrepen gedurende 2 uur en diverse warme en koude hapjes"]
[null,null,null,null,null,null,null,null,null,null,null,null,null,null,null,null,null,null,6,"of Receptie E met aperitiefglaasjes"]
[null,null,null,null,null,null,null,null,null,null,null,null,null,null,null,null,null,null,7]
[null,null,null,null,null,null,null,null,null,null,null,null,null,null,null,null,null,null,8,"- Brochette met gepelde scampi's",null,null,null,null,null,null,4]
[null,null,null,null,null,null,null,null,null,null,null,null,null,null,null,null,null,null,9,"- Stukje zalm en papillotte"]
[null,null,null,null,null,null,null,null,null,null,null,null,null,null,null,null,null,null,10,"- Worst",null,null,null,null,null,null,28]
[null,null,null,null,null,null,null,null,null,null,null,null,null,null,null,null,null,null,11,"- Lamskoteletjes "]
[null,null,null,null,null,null,null,null,null,null,null,null,null,null,null,null,null,null,12,"- Varkensbrochet"]
[null,null,null,null,null,null,null,null,null,null,null,null,null,null,null,null,null,null,13,"frietjes (supplement)",null,null,null,null,null,null,1]
[null,null,null,null,null,null,null,null,null,null,null,null,null,null,null,null,null,null,14,"Groenten en sausen"]
[null,null,null,null,null,null,null,null,null,null,null,null,null,null,null,null,null,null,15]
[null,null,null,null,null,null,null,null,null,null,null,null,null,null,null,null,null,null,16,"Bio wijnen, bieren en frisdranken als forfait",null,null,null,null,null,null,0]
[null,null,null,null,null,null,null,null,null,null,null,null,null,null,null,null,null,null,17]
[null,null,null,null,null,null,null,null,null,null,null,null,null,null,null,null,null,null,18,"Koffie 3 X bediend met koekjes",null,null,null,null,null,null,3.35]

{"sheet":"Algemene verkoopsvoorwaarden","index":2,"n_rows":63,"n_cols":12,"rows_kept":63,"cut":false,"hidden":false,"merged":[]}
[null,"Algemene verkoopsvoorwaarden:"]
[null,"1) Onze facturen zijn contant te betalen bij levering van de goederen. Bijgevolg zal in geval van laattijdige betaling"]
[null,"van rechtswege en zonder voorafgaande ingebrekestelling een intrest aangerekend worden van 12% per jaar op de "]
[null,"bedragen, verschuldigd acht dagen na de vervaldag van de facturen. Tevens zal bij gebrek aan betaling na "]
[null,"aanmaning bij gewone brief, het verschuldigde bedrag van rechtswege verhoogd worden met een forfaitaire"]
[null,"vergoeding van 12 % met een minimum van € 50  voor bijkomende administratieve kosten, debiteurenbewaking "]
[null,"en commerciële stoornissen. Wij behouden ons het recht voor op elk moment de leveringen te staken. Elke "]
[null,"klacht over de kwaliteit van de geleverde goederen moet uiterlijk 24 uur na de levering worden overgemaakt. "]
[null,"Klachten in verband met facturatie kunnen slechts in aanmerking worden genomen zo zij binnen de acht "]
[null,"dagen na ontvangst van de goederen bij aangetekende brief worden meegedeeld. In geval van betwisting zijn "]
[null,"uitsluitend de rechtbanken van Kortrijk bevoegd. De leveringen  geschieden op risico van de bestemmeling. Er "]
[null,"wordt uitdrukkelijk overeengekomen dat de klant door het plaatsen van een bestelling onze algemene "]
[null,"verkoopsvoorwaarden erkent. Elke wijziging hieraan moet voorafgaandelijk in een schriftelijk akkoord worden "]
[null,"vastgelegd."]
[]
[null,"2) Annulatie dient schriftelijk en gedateerd te geschieden. "]
[null,"In geval van annulatie minder dan 60 dagen voor de activiteit blijft het voorschot eigendom van het Katelijnenhof."]
[null,"Voor annulatie minder dan 10 dagen voor de activiteit is de klant in alle gevallen verplicht 35 % van de reservatie-"]
[null,"waarde van de gehele manifestatie te vergoeden."]
[null,"Bij annulatie minder dan 5 dagen voor  de activiteit is de klant in alle gevallen verplicht de reservatie waarde van de "]
[null,"gehele manifestatie te vergoeden."]
[]
[null,"3) Iedere levering van dranken, voedingswaren of diensten in de  zalen is uitsluitend voorbehouden aan het "]
[null,"Katelijnenhof, tenzij er een andere schriftelijke overeenkomst is."]
[]
[null,"4) De klant is eraan gehouden voor iedere dansavond met groot orkest een aanvraag tot toelating in te dienen bij "]
[null,"SABAM, Rijselsestraat 51, 8500 Kortrijk, Tel : 056/210738 en alle kosten voortvloeiend uit deze aanvraag te "]
[null,"dragen.  Voor een gewone disc-jockey betalen wij jaarlijks een vaste bijdrage. Het verbruik (drank en voeding) "]
[null,"van de DJ is ten laste van de klant. Gelet op de nieuwe geluidsnormen, van kracht op 01/01/2013, moet de "]
[null,"klant de DJ of elke andere persoon of toestel dat  geluid produceert verplichten zich aan deze normen te houden. "]
[null,"De toelating voor onze zaal is – maximaal geluidsniveau > 85 dB(A) LAeq,15min en ≤ 95 dB(A) LAeq,15min. "]
[null,"Dit is ruim voldoende. Alle boetes ten gevolge een overschrijding van deze voorwaarde zijn ten laste van de "]
[null,"klant. Er wordt een professionele houding van elke DJ of geluidstechnicus verwacht."]
[]
[null,"5) Alle door de klant meegebrachte materiaal dient door de klant te worden verzekerd en direct na het beëindigen"]
[null,"van de manifestatie te worden verwijderd uit de zaal. Het Katelijnenhof behoudt het recht de leverancier te "]
[null,"aanvaarden en voorschriften te geven om de lokalen ongeschonden te behouden. Het is strikt verboden om "]
[null,"versieringen aan de muren of plafonds te bevestigen met duimspijkers of kleefband ! Bij beschadigingen van "]
[null,"een deel van de muur wordt het geheel als beschadigd beschouwd."]
[]
[null,"6) Het gebruik van de zaal is strikt beperkt tot de in deze overeenkomst vastgestelde functie. "]
[null,"Iedere wijziging in de voorheen verklaarde bestemming brengt automatisch het recht tot prijsherziening met zich mee."]
[]
[null,"7) Het gebruik van de zaal is gratis van zodra het verbruik hoger ligt dan € ",null,null,null,null,null,null,{"$f":"matrixen!E4","v":950}]
[null,{"$f":"\"Indien het verbruik lager ligt dan wordt het factuurbedrag opgetrokken tot € \"&I44","v":"Indien het verbruik lager ligt dan wordt het factuurbedrag opgetrokken tot € 950"}]
[null,"Indien uw feest cash (max € 3000) betaald wordt op de dag zelf dan krijgt u een korting van 2 % "]
[null,"op de gehele factuur. Voor traiteurdienst gelden andere kortingsregels."]
[]
[null,"8) Op vrijdag-, zaterdag- en (in geval van een avondfeest) op zondagnacht sluit de zaal, "]
[null,"overeenkomstig het politiereglement, om 03 uur. "]
[null,"Indien de klant dit wenst kan een afwijking bekomen worden op dit reglement mits het betalen van € ",null,null,null,null,null,null,null,null,null,{"$f":"I44/10","v":95}]
[null,"(btw incl.) per uur. De klant heeft tijd tot 02u30 om te beslissen of hij van deze afwijking wenst gebruik te "]
[null,"maken of niet. Indien de klant akkoord gaat deze toeslag  te betalen zal het Katelijnenhof  onmiddellijk een "]
[null,"aanvraag doen bij de lokale politie. In het andere geval worden vanaf 02u45 geen dranken meer bediend en"]
[null,"sluiten om 03u00 de deuren. Voor de andere dagen gelden andere tarieven."]
[null,"Op een zaterdag - en zondagmiddagfeest sluit de zaal om 18u30. Indien u wenst langer te blijven wordt per "]
[null,"begonnen uur eveneens een toeslag van € ",null,null,null,{"$f":"L51","v":95}]
[null,"(btw incl.) aangerekend."]
[null,"9) De klant is verantwoordelijk voor de goede orde in en rond de feestzaal. Schade veroorzaakt door een der "]
[null,"aanwezigen kan verhaald worden op deze persoon maar als deze om gelijk welke reden de schade niet kan "]
[null,"vergoeden (vb: te weinig financiële middelen of de veroorzaker is onbekend) kan deze schade eveneens "]
[null,"ondeelbaar worden verhaald op de klant , zijnde de persoon die het feest heeft besteld. VB: per gebroken tulpje "]
[null,"aan de lusters van de grote zaal wordt 25 euro aangerekend."]

{"sheet":"Reservatievoorstel","index":3,"n_rows":50,"n_cols":18,"rows_kept":50,"cut":false,"hidden":false,"merged":[[2,16,3,16],[40,0,43,8],[2,14,3,14],[2,15,3,15],[2,17,3,17],[9,12,9,13],[14,9,14,17],[16,9,16,17],[12,12,12,16],[23,14,23,17],[12,9,12,11],[25,9,26,17],[36,0,37,7]]}
[null,null,"Reservatievoorstel",null,null,null,null,null,null,null,"Uitsplitsing per BTW tarief.",null,null,null,null,"Totaalprijs per vol:",{"$f":"E9","v":30.8}]
["Naam Klant:",null,{"$f":"'selecteer hier uw barbecue'!F74","v":0},null,null,null,"Katelijnenhof",null,null,null,null,null,null,null,null,{"$f":"IF(Q2>0,\"Prijs drankforfait na de maaltijd, volledig aan 21% BTW:\",\"\")","v":""},{"$f":"'selecteer hier uw barbecue'!D58","v":0}]
["Adres:",null,{"$f":"'selecteer hier uw barbecue'!F75","v":0},null,null,null,"Heirweg 172",null,null,null,null,null,"Menu",null,"Dep. B",{"$f":"IF(Q2>0,\"Drank- forfait:\",\"\")","v":""},"Totaal aan 21%","Dep. A"]
["Stad:",null,{"$f":"'selecteer hier uw barbecue'!F76","v":0},null,null,null,"8800 Roeselare",null,null,null,"aantal","totaal:","deel 12%","deel21%"]
["Tel nr:",null,{"$f":"'selecteer hier uw barbecue'!F77","v":0},null,null,null,"info@katelijnenhof.be",null,null,"Vol",{"$f":"D9","v":0},{"$f":"Q1-Q2","v":30.8},{"$f":"ROUND(L5*0.65,2)","v":20.02},{"$f":"L5-M5","v":10.780000000000001},{"$f":"K5*M5","v":0},{"$f":"Q2","v":0},{"$f":"N5+P5","v":10.780000000000001},{"$f":"K5*Q5","v":0}]
[{"$f":"'selecteer hier uw barbecue'!E78","v":"reden feest:"},null,{"$f":"'selecteer hier uw barbecue'!F78","v":0},null,null,null,"Gsm 0475/618058",null,null,"JR 1/2",{"$f":"D10","v":0},{"$f":"L5/2","v":15.4},{"$f":"ROUND(L6*0.65,2)","v":10.01},{"$f":"L6-M6","v":5.3900000000000006},{"$f":"K6*M6","v":0},{"$f":"Q2/2","v":0},{"$f":"N6+P6","v":5.3900000000000006},{"$f":"K6*Q6","v":0}]
["Datum activiteit:",null,{"$f":"'selecteer hier uw barbecue'!F64","v":"00:00:00"},null,null,null,null,null,null,"JR 1/3",{"$f":"D11","v":0},{"$f":"L5/3","v":10.266666666666667},{"$f":"ROUND(L7*0.65,2)","v":6.67},3.5966666666666676,0,{"$f":"Q2/3","v":0},{"$f":"N7+P7","v":3.5966666666666676},0]
["Totaal aantal personen:",null,null,{"$f":"D9+D10+D11+D12","v":0},"prijs:",null,null,"aankomst om:",{"$f":"'selecteer hier uw barbecue'!F71","v":0},"JR gratis",{"$f":"D12","v":0},{"$f":"E12","v":"0,00"},{"$f":"L8*0.65","v":0},{"$f":"L8*0.35","v":0},0,null,{"$f":"N8+P8","v":0},0]
[null,null,"volwassenen:",{"$f":"'selecteer hier uw barbecue'!F66","v":0},{"$f":"'selecteer hier uw barbecue'!D7","v":30.8},null,null,"aan tafel om:",{"$f":"'selecteer hier uw barbecue'!F72","v":0},null,null,"Voorschot reeds betaald:",null,null,null,{"$f":"IF(Q9>0,\"Huur zaal/muziekinstallatie: \",\"\")","v":""},{"$f":"I12+D13","v":0}]
[null,null,"JR 1/2 (6 t.e.m. 11) :",{"$f":"'selecteer hier uw barbecue'!F67","v":0},{"$f":"'selecteer hier uw barbecue'!J7","v":15.4},null,null,"raming totaal 1:",{"$f":"D9*E9+D10*E10+D11*E11+D12*E12+D13","v":0},null,null,"Gestort / betaald op:"]
[null,null,"JR 1/3 (3 t.e.m. 5) :",{"$f":"'selecteer hier uw barbecue'!F68","v":0},{"$f":"'selecteer hier uw barbecue'!H7","v":10.266666666666667},null,null,"ander rekenblad:",{"$f":"'selecteer hier uw barbecue'!F81","v":0},null,null,{"$f":"IF(M9>0,\"Voorschot uitgesplitst:\",\"\")","v":""},{"$f":"IF(M9>0,\" € \"&M9*0.65 & \" x 12% => Dep. B  en € \" & M9*0.35 & \" x 21% => Dep. A.\",\"\")","v":""}]
[null,null,"JR gratis (0 t.e.m. 2) :",{"$f":"'selecteer hier uw barbecue'!F69","v":0},{"$f":"'selecteer hier uw barbecue'!F7","v":"0,00"},null,null,"huur zaal:",{"$f":"IF(D9+D10+D11+D12=0,0,IF((I10+I11)<'Algemene verkoopsvoorwaarden'!I44,'Algemene verkoopsvoorwaarden'!I44-I10-I11,0))","v":0},null,null,null,"Voorschot wordt gesplitst over:",{"$f":"IF(M9>0,ROUNDUP((M9+1)/L5,0),0)","v":0}," volwassenen"]
[null,null,null,{"$f":"'selecteer hier uw barbecue'!I61","v":0},null,null,null,"raming algemeen totaal:",{"$f":"I10+I11+I12","v":0},"Input GKS:",null,null,{"$f":"IF(M9*0.65 >N12*M5,\"ONMOGELIJK U bekomt negatieve waarden.\",\"\")","v":""}]
[null,null,null,null,null,null,null,"raming te betalen indien contante betaling  (max € 3000 cash):",{"$f":"'selecteer hier uw barbecue'!F86","v":0},{"$f":"N12","v":0},"vol","x",{"$f":"IFERROR(M5-M9*0.65/N12,\"\")","v":""},0.12,{"$f":"IFERROR(J14*M14,\"\")","v":""},"Dep. B","Verwerking voorschot"]
[null,null,null,"Voorkeur tafelschikking:",null,null,null,null,{"$f":"'selecteer hier uw barbecue'!K88","v":"geen voorkeur"},{"$f":"IFERROR( \" Er wordt € \" & ROUND(M9*0.65/N12,2) & \" minder geboekt bij \" & N12 & \" personen omdat dit reeds als voorschot werd geboekt.\",\"\")","v":""}]
[null,null,null,null,null,null,null,null,{"$f":"'selecteer hier uw barbecue'!B17","v":"De gast die een extra aperitief bestelt betaalt deze zelf"},{"$f":"N12","v":0},"vol","x",{"$f":"IFERROR(Q5-M9*0.35/N12,\"\")","v":""},0.21,{"$f":"IFERROR(J16*M16,\"\")","v":""},"Dep. A","Verwerking voorschot"]
[{"$f":"'selecteer hier uw barbecue'!H65","v":""},null,null,null,null,null,null,null,{"$f":"IF(M9>0,\" Uw voorschot van € \" & M9 & \" wordt nog in mindering gebracht\",\"\")","v":""},{"$f":"IFERROR( \" Er wordt € \" & ROUND(M9*0.35/N12,2) & \" minder geboekt bij \" & N12 & \" personen omdat dit reeds als voorschot werd geboekt.\",\"\")","v":""}]
[{"$f":"'selecteer hier uw barbecue'!H66","v":""},null,null,null,null,null,null,null,null,{"$f":"K5-J14","v":0},{"$f":"K14","v":"vol"},"x",{"$f":"M5","v":20.02},0.12,{"$f":"J18*M18","v":0},"Dep. B"]
[{"$f":"'selecteer hier uw barbecue'!H67","v":""},null,null,null,null,null,null,null,null,{"$f":"K5-J16","v":0},{"$f":"K16","v":"vol"},"x",{"$f":"Q5","v":10.780000000000001},0.21,0,"Dep. A"]
[{"$f":"'selecteer hier uw barbecue'!H68","v":""},null,null,null,null,null,null,null,null,{"$f":"K6","v":0},{"$f":"J6","v":"JR 1/2"},"x",{"$f":"M6","v":10.01},0.12,0,"Dep. B"]
[{"$f":"'selecteer hier uw barbecue'!H69","v":""},null,null,null,null,null,null,null,null,{"$f":"K6","v":0},{"$f":"J6","v":"JR 1/2"},"x",{"$f":"Q6","v":5.3900000000000006},0.21,0,"Dep. A"]
[{"$f":"'selecteer hier uw barbecue'!H70","v":""},null,null,null,null,null,null,null,null,{"$f":"K7","v":0},{"$f":"J7","v":"JR 1/3"},"x",{"$f":"M7","v":6.67},0.12,0,"Dep. B"]
[{"$f":"'selecteer hier uw barbecue'!H71","v":""},null,null,null,null,null,null,null,null,{"$f":"K7","v":0},{"$f":"J7","v":"JR 1/3"},"x",{"$f":"Q7","v":3.5966666666666676},0.21,0,"Dep. A"]
[null,null,"Barbecue met:",null,null,null,null,null,null,{"$f":"IF(L24>0,\"1\",0)","v":0},{"$f":"IF(L24>0,\"x\",\"\")","v":""},{"$f":"Q9","v":0},{"$f":"IF(L24>0,\"21%\",\"\")","v":""},{"$f":"IF(L24>0,\"Dep. A\",\"\")","v":""},{"$f":"P9","v":""}]
[{"$f":"'selecteer hier uw barbecue'!H72","v":"Aardappel in de pel"},null,null,null,null,null,null,null,null,null,"Totale boekwaarde:",{"$f":"SUM(O14:O23)+L24+M9+I11","v":0},{"$f":"IF(SUM(O14:O23)+L24+M9+I11 <>I13,\" Er is iets fout met de splitsingstabel\",\"\")","v":""}]
[{"$f":"'selecteer hier uw barbecue'!H73","v":"groenten en sausen"},null,null,null,null,null,null,null,null,{"$f":"\"De eventuele korting contant van 2 %, in het huidig voorstel is dit € \" & ROUND(I13-I14,2) & \" is nog niet in bovenstaande splitsing verwerkt.\"","v":"De eventuele korting contant van 2 %, in het huidig voorstel is dit € 0 is nog niet in bovenstaande splitsing verwerkt."}]
[{"$f":"'selecteer hier uw barbecue'!H74","v":""},null,null,null,null,null,null,null,{"$f":"'selecteer hier uw barbecue'!J74","v":""}]
[{"$f":"'selecteer hier uw barbecue'!H75","v":""},null,null,null,null,null,null,null,{"$f":"'selecteer hier uw barbecue'!J75","v":""},{"$f":"IF(J29<>\"\",\"Detail van het aperitief:\",\"\")","v":""}]
[{"$f":"'selecteer hier uw barbecue'!H76","v":""},null,null,null,null,null,null,null,{"$f":"'selecteer hier uw barbecue'!J76","v":""},{"$f":"A17","v":""}]
[{"$f":"'selecteer hier uw barbecue'!H77","v":""},null,null,null,null,null,null,null,{"$f":"'selecteer hier uw barbecue'!J77","v":""},{"$f":"'selecteer hier uw barbecue'!H13","v":0}]
[{"$f":"'selecteer hier uw barbecue'!H78","v":""},null,null,null,null,null,null,null,{"$f":"'selecteer hier uw barbecue'!J78","v":""},{"$f":"'selecteer hier uw barbecue'!H14","v":0}]
[{"$f":"'selecteer hier uw barbecue'!L74","v":0},null,null,null,{"$f":"'selecteer hier uw barbecue'!L75","v":0},null,null,null,null,{"$f":"'selecteer hier uw barbecue'!H15","v":0}]
[{"$f":"'selecteer hier uw barbecue'!H80","v":"Huiswijn, bieren en frisdranken als forfait"},null,null,null,null,null,null,null,null,{"$f":"'selecteer hier uw barbecue'!H16","v":0}]
[{"$f":"'selecteer hier uw barbecue'!H81","v":""},null,null,null,null,null,null,null,null,{"$f":"'selecteer hier uw barbecue'!H17","v":0}]
[{"$f":"'selecteer hier uw barbecue'!H82","v":""},null,null,null,null,null,null,null,null,{"$f":"'selecteer hier uw barbecue'!H18","v":0}]
[{"$f":"'selecteer hier uw barbecue'!B58","v":"Elke gast die na de maaltijd een drankje bestelt rekent direct af aan de bar"},null,null,null,null,null,null,null,null,{"$f":"'selecteer hier uw barbecue'!H19","v":0}]
[{"$f":"'selecteer hier uw barbecue'!K90","v":"Betaling op de dag zelf (cash of bancontact), u bekomt 2% korting op het totaal"},null,null,null,null,null,null,null,null,{"$f":"'selecteer hier uw barbecue'!H20","v":0}]
[null,null,null,null,null,null,null,null,null,{"$f":"'selecteer hier uw barbecue'!H21","v":0}]
["Vegetariërs: ",{"$f":"'selecteer hier uw barbecue'!G58","v":"nee"},null,"Speciale dieten: ",{"$f":"'selecteer hier uw barbecue'!I58","v":"nee"},null,null,"Feest met discobar: ",{"$f":"'selecteer hier uw barbecue'!G60","v":"nee"},{"$f":"'selecteer hier uw barbecue'!H22","v":0}]
["Factuur: ",{"$f":"'selecteer hier uw barbecue'!K92","v":"nee"},null,"Halal bereidingen: ",{"$f":"'selecteer hier uw barbecue'!K58","v":"nee"},null,null,{"$f":"'selecteer hier uw barbecue'!H60","v":"Allergenen: "},{"$f":"'selecteer hier uw barbecue'!I60","v":"nee"},{"$f":"'selecteer hier uw barbecue'!H23","v":0}]
[{"$f":"\"Opmerking: \" &'selecteer hier uw barbecue'!F79","v":"Opmerking: "},null,null,null,null,null,null,null,null,{"$f":"'selecteer hier uw barbecue'!H24","v":0}]
[null,null,null,null,null,null,null,null,null,{"$f":"'selecteer hier uw barbecue'!H25","v":0}]
[null,null,null,null,null,null,null,null,null,{"$f":"'selecteer hier uw barbecue'!H26","v":0}]
[null,null,null,null,null,null,null,null,null,{"$f":"IF(A34<>\"\",\"Detail van het dessert:\",\"\")","v":""}]
["Het juiste aantal EN de gewenste tafelschikking moet ons meegedeeld worden ten laatste op: ",null,null,null,null,null,null,null,{"$f":"C7-9","v":-9},{"$f":"'selecteer hier uw barbecue'!F49","v":0}]
["Wijzigingen na deze datum van aantal en/of tafelschikking hebben prijsherzieningen tot gevolg!",null,null,null,null,null,null,null,null,{"$f":"'selecteer hier uw barbecue'!F50","v":0}]
["Dit aantal geldt als minimum voor facturatie. Verdere verkoopsvoorwaarden op een ander werkblad. ",null,null,null,null,null,null,null,null,{"$f":"'selecteer hier uw barbecue'!F51","v":0}]
["Vergeet ze niet te lezen.",null,null,null,null,null,null,"Gaat u akkoord met de algemene verkoopsvoorwaarden?",{"$f":"'selecteer hier uw barbecue'!K86","v":"ja"},{"$f":"'selecteer hier uw barbecue'!F52","v":0}]
["Handtekening der beide partijen voor akkoord:",null,null,null,null,null,null,null,null,{"$f":"'selecteer hier uw barbecue'!F53","v":0}]
[null,null,"De klant",null,null,null,null,"Het Katelijnenhof",null,{"$f":"'selecteer hier uw barbecue'!F54","v":0}]